﻿Body Name,Body,Service Level,Expense Type,Expense Code,Narrative,Date,Transaction Number,Amount,Capital and Revenue,Supplier Name,Supplier ID
South Ribble Borough Council,http://statistics.data.gov.uk/id/local-authority/30UE,Capital,Cap Contract Payment,C230,LABOUR,18/06/2021,0000468484,£250.00,Revenue,A & G Landscapes & Groundworks LTD,0
South Ribble Borough Council,http://statistics.data.gov.uk/id/local-authority/30UE,Capital,Cap Contract Payment,C230,"MATERIALS Supply & Installation of 2 No Spare Bollard Sockets , Overflow Car Park, Worden Park",18/06/2021,0000468484,£265.00,Revenue,A & G Landscapes & Groundworks LTD,0
South Ribble Borough Council,http://statistics.data.gov.uk/id/local-authority/30UE,Central Support Services,Reactive Repair & Maintenance,2020,Please provide skip as per NAME REDACTED for the Civic Centre,23/06/2021,0000469122,£285.00,Revenue,ABLE SKIP HIRE LTD,0
South Ribble Borough Council,http://statistics.data.gov.uk/id/local-authority/30UE,Economic Development,Publicity & Promotion,4842,Please supply Bags for life as per NAME REDACTED request £525 plus VAT for 5000 bags,04/06/2021,0000467578,£525.00,Revenue,AD OPTIONS LTD,0
South Ribble Borough Council,http://statistics.data.gov.uk/id/local-authority/30UE,Central Support Services,Materials General,4040,"1 x steering rack, CE63FJY, JFC16647",09/06/2021,0000468586,£478.88,Revenue,AFL (AUTO FACTORS) LTD,0
South Ribble Borough Council,http://statistics.data.gov.uk/id/local-authority/30UE,Central Support Services,Reactive Repair & Maintenance,2020,"Repair leak on flush pipe, ladies toilet, 3rd floor - Civic Centre, leak on toilet, job centre area, ground floor flush pipe, Supply and fit new taps",09/06/2021,0000468609,£280.00,Revenue,Ainscoe Plumbing & Heating Ltd,0
South Ribble Borough Council,http://statistics.data.gov.uk/id/local-authority/30UE,Central Support Services,Reactive Repair & Maintenance,2020,"Supply and fit new outside tap & new ball valve to toilet, Provide cold water service in the corridor, Supply 9 taps for future maintenance works",09/06/2021,0000468610,"£1,060.00",Revenue,Ainscoe Plumbing & Heating Ltd,0
South Ribble Borough Council,http://statistics.data.gov.uk/id/local-authority/30UE,Central Support Services,External Contractors Charges,4570,"1 x  spec repair, YD19ATY, JFC16711",04/06/2021,0000468485,£280.00,Revenue,Alan Edwards (Edwards Technical),0
South Ribble Borough Council,http://statistics.data.gov.uk/id/local-authority/30UE,Capital,Cap Contract Payment,C230,CANCELLED BY CREDIT1136,04/06/2021,0000467216,"£3,187.90",Revenue,Anderton Gables Ltd,0
South Ribble Borough Council,http://statistics.data.gov.uk/id/local-authority/30UE,Capital,Cap Contract Payment,C230, Worden Hall refurbishment as per NAME REDACTED request,11/06/2021,0000468362,"£3,000.00",Revenue,Anderton Gables Ltd,0
South Ribble Borough Council,http://statistics.data.gov.uk/id/local-authority/30UE,Capital,Cap Contract Payment,C230,"Please could it be made out for APEC  - Hazardous materials survey for worden Hall refurb as per NAME REDACTED request Cost £1,133",11/06/2021,0000468812,"£1,133.00",Revenue,APEC Environmental Ltd,0
South Ribble Borough Council,http://statistics.data.gov.uk/id/local-authority/30UE,Recreation & Sport,Cost of Drinks,4311,AquaAid Water Machine Deposit,23/06/2021,0000469067,£50.00,Revenue,AquAid Franchising Limited (Liverpool),0
South Ribble Borough Council,http://statistics.data.gov.uk/id/local-authority/30UE,Recreation & Sport,Cost of Drinks,4311,AquaAid POU Annual Rental,23/06/2021,0000469067,£299.00,Revenue,AquAid Franchising Limited (Liverpool),0
South Ribble Borough Council,http://statistics.data.gov.uk/id/local-authority/30UE,Recreation & Sport,Cost of Drinks,4311,AquaAid Environmental Charge Annual,23/06/2021,0000469067,£8.40,Revenue,AquAid Franchising Limited (Liverpool),0
South Ribble Borough Council,http://statistics.data.gov.uk/id/local-authority/30UE,Capital,Cap Contract Payment,C230,for the delivery to archaeological services to discharge planning conditions for the Worden Hall refurbishment,23/06/2021,0000468754,£935.00,Revenue,Archaeological Research Services Ltd,0
South Ribble Borough Council,http://statistics.data.gov.uk/id/local-authority/30UE,Capital,Cap Contract Payment,C230,"To carry out conversion works and create 9 self contained flats as tendered at ADDRESS REDACTED, work to commence 1st June 2020",16/06/2021,0000467825,"£103,487.75",Revenue,ASH BARN CONSTRUCTION LTD,0
South Ribble Borough Council,http://statistics.data.gov.uk/id/local-authority/30UE,Recreation & Sport,Legal Fees,4513,FOR LEGAL ADVICE PROVIDED TO NAME REDACTED,11/06/2021,0000468843,£350.00,Revenue,ASTUTE LEGAL SOLICITORS & ADVOCATES,0
South Ribble Borough Council,http://statistics.data.gov.uk/id/local-authority/30UE,Surplus or Deficit on Trading,Reactive Repair & Maintenance,2020,"Undertake fixed wire certification, ground floor bru house word park, Leyland. Any remedial works required. As per NAME REDACTED request",09/06/2021,0000468703,£250.00,Revenue,BELEC ELECTRICAL LTD,0
South Ribble Borough Council,http://statistics.data.gov.uk/id/local-authority/30UE,Capital,Cap Contract Payment,C230,"Electrical installation, Full testing of Brewhouse, provide connection to Café Pod. Supply, installation, disconnection & reinstallation of wired items",11/06/2021,0000468814,"£3,602.19",Revenue,BELEC ELECTRICAL LTD,0
South Ribble Borough Council,http://statistics.data.gov.uk/id/local-authority/30UE,Surplus or Deficit on Trading,Reactive Repair & Maintenance,2020,"Repairs after inspection & testing at Moss side comm centre, double 5 foot LED fitting, single 5 foot LED fitting, 4 inch fan, ceiling LED light round",18/06/2021,0000468860,"£1,404.40",Revenue,BELEC ELECTRICAL LTD,0
South Ribble Borough Council,http://statistics.data.gov.uk/id/local-authority/30UE,Recreation & Sport,Professional Fees,4510,"24 months unlimited use software licence, secure UK hosting, maintenance, data compliance, rolling upgrades, new software features",16/06/2021,0000468868,"£2,138.40",Revenue,Boditrax Technologies Ltd,0
South Ribble Borough Council,http://statistics.data.gov.uk/id/local-authority/30UE,Recreation & Sport,Consumable Clng Materials,2711,HTH0003NH - HTH DUSTED GRANUALS DRUM - x 7 - £68.88 each,16/06/2021,0000467826,£480.00,Revenue,Brenntag UK Ltd,0
South Ribble Borough Council,http://statistics.data.gov.uk/id/local-authority/30UE,Open Spaces,Materials General,4040,Derby Slimline Litter Bin BX45 2596 Black & Gold with Bait Base as per spec detailed in email from NAME REDACTED dated 8.4.21,23/06/2021,0000468815,"£2,800.00",Revenue,BROXAP LTD,0
South Ribble Borough Council,http://statistics.data.gov.uk/id/local-authority/30UE,Central Support Services,Materials General,4040,DERBY SLIMLINE LITTER BIN WITH ASHTRAY (BLACK & GOLD) BX45G 2596(W),25/06/2021,0000469070,"£4,980.00",Revenue,BROXAP LTD,0
South Ribble Borough Council,http://statistics.data.gov.uk/id/local-authority/30UE,Recreation & Sport,Consumable Clng Materials,2711,Biotek Citrus 5L (CS 2) 1528 (///) WW 2 @ £14.35,16/06/2021,0000468635,£28.70,Revenue,Bunzl UK Ltd T/A Cleaning and HygieneSupplies,0
South Ribble Borough Council,http://statistics.data.gov.uk/id/local-authority/30UE,Recreation & Sport,Consumable Clng Materials,2711,Biotek Odour Mask 5L (CS 2) 1589 (///) WW 2 @ £14.75,16/06/2021,0000468635,£29.50,Revenue,Bunzl UK Ltd T/A Cleaning and HygieneSupplies,0
South Ribble Borough Council,http://statistics.data.gov.uk/id/local-authority/30UE,Recreation & Sport,Consumable Clng Materials,2711,Cleanline Economy Microfibre Cloth Blue 40CM (EA) 512816 10 @ 0.57,16/06/2021,0000468635,£5.70,Revenue,Bunzl UK Ltd T/A Cleaning and HygieneSupplies,0
South Ribble Borough Council,http://statistics.data.gov.uk/id/local-authority/30UE,Recreation & Sport,Consumable Clng Materials,2711,Cleanline Economy Microfibre Cloth Red 40CM (EA) 512818 10 @ £0.56,16/06/2021,0000468635,£5.60,Revenue,Bunzl UK Ltd T/A Cleaning and HygieneSupplies,0
South Ribble Borough Council,http://statistics.data.gov.uk/id/local-authority/30UE,Recreation & Sport,Consumable Clng Materials,2711,Cleanline Wizard Cleaning Sponge 10x6x2.8CM(PK 12)(EA)143787 4 @ £1.68,16/06/2021,0000468635,£6.29,Revenue,Bunzl UK Ltd T/A Cleaning and HygieneSupplies,0
South Ribble Borough Council,http://statistics.data.gov.uk/id/local-authority/30UE,Recreation & Sport,Consumable Clng Materials,2711,Floorline PY Kentucky Mophead 20OZ (EA) KMPY5601L 6 @ £2.46,16/06/2021,0000468635,£8.58,Revenue,Bunzl UK Ltd T/A Cleaning and HygieneSupplies,0
South Ribble Borough Council,http://statistics.data.gov.uk/id/local-authority/30UE,Recreation & Sport,Consumable Clng Materials,2711,Magic Dash Hard Surface Cleaner 750ML (CS 6) 1040 (///) WW 1 @ £12.35,16/06/2021,0000468635,£12.35,Revenue,Bunzl UK Ltd T/A Cleaning and HygieneSupplies,0
South Ribble Borough Council,http://statistics.data.gov.uk/id/local-authority/30UE,Recreation & Sport,Consumable Clng Materials,2711,Magic Dispel Hard Surface Destainer 750ML(CS 6)1024 (///)WW 1 @ £11.75,16/06/2021,0000468635,£11.75,Revenue,Bunzl UK Ltd T/A Cleaning and HygieneSupplies,0
South Ribble Borough Council,http://statistics.data.gov.uk/id/local-authority/30UE,Recreation & Sport,Consumable Clng Materials,2711,Magic Loo Care 750ML (CS 12) 1026 (///) WW 1 @ £19.65,16/06/2021,0000468635,£19.65,Revenue,Bunzl UK Ltd T/A Cleaning and HygieneSupplies,0
South Ribble Borough Council,http://statistics.data.gov.uk/id/local-authority/30UE,Recreation & Sport,Consumable Clng Materials,2711,Magic Smokescreen 750ML (CS 6) 1047 (///) 2 @ £11.85,16/06/2021,0000468635,£23.70,Revenue,Bunzl UK Ltd T/A Cleaning and HygieneSupplies,0
South Ribble Borough Council,http://statistics.data.gov.uk/id/local-authority/30UE,Recreation & Sport,Consumable Clng Materials,2711,Skytec Rialto Nitrile Gauntlet Yellow LRG (PR) EN374 SKY973 5 @ £1.35,16/06/2021,0000468635,£6.70,Revenue,Bunzl UK Ltd T/A Cleaning and HygieneSupplies,0
South Ribble Borough Council,http://statistics.data.gov.uk/id/local-authority/30UE,Recreation & Sport,Consumable Clng Materials,2711,Skytec Rialto Nitrile Gauntlet Yellow MED (PR) EN374 SKY972 5 @ £1.35,16/06/2021,0000468635,£6.70,Revenue,Bunzl UK Ltd T/A Cleaning and HygieneSupplies,0
South Ribble Borough Council,http://statistics.data.gov.uk/id/local-authority/30UE,Recreation & Sport,Consumable Clng Materials,2711,Stockinette Dishcloth Regular White 14x11`` (PK 10) 900028 5 @ £1.95,16/06/2021,0000468635,£9.75,Revenue,Bunzl UK Ltd T/A Cleaning and HygieneSupplies,0
South Ribble Borough Council,http://statistics.data.gov.uk/id/local-authority/30UE,Recreation & Sport,Consumable Clng Materials,2711,Tork Basic Paper Centrefeed Blue 150M 2Ply (CS 6) 128107 6 @ £17.55,16/06/2021,0000468635,£105.30,Revenue,Bunzl UK Ltd T/A Cleaning and HygieneSupplies,0
South Ribble Borough Council,http://statistics.data.gov.uk/id/local-authority/30UE,Recreation & Sport,Consumable Clng Materials,2711,10 Fingergrip Scourers 13x7x4cm 2 @ £2.15,23/06/2021,0000469120,£4.30,Revenue,Bunzl UK Ltd T/A Cleaning and HygieneSupplies,0
South Ribble Borough Council,http://statistics.data.gov.uk/id/local-authority/30UE,Recreation & Sport,Consumable Clng Materials,2711,Biotek Citrus 5L (CS 2) 1528 (///) WW 2 @ £14.35,23/06/2021,0000469120,£28.70,Revenue,Bunzl UK Ltd T/A Cleaning and HygieneSupplies,0
South Ribble Borough Council,http://statistics.data.gov.uk/id/local-authority/30UE,Recreation & Sport,Consumable Clng Materials,2711,Black Sack EX HD 18x29x38`` (CS 200) GR0009 15+KG 1 @ £12.10,23/06/2021,0000469120,£12.10,Revenue,Bunzl UK Ltd T/A Cleaning and HygieneSupplies,0
South Ribble Borough Council,http://statistics.data.gov.uk/id/local-authority/30UE,Recreation & Sport,Consumable Clng Materials,2711,Breazy Microfibre Cloth Blue 37x30CM (PK 25) 1 @ £6.55,23/06/2021,0000469120,£6.55,Revenue,Bunzl UK Ltd T/A Cleaning and HygieneSupplies,0
South Ribble Borough Council,http://statistics.data.gov.uk/id/local-authority/30UE,Recreation & Sport,Consumable Clng Materials,2711,Breazy Microfibre Cloth Green 37x30CM (PK 25) 1 @ £6.55,23/06/2021,0000469120,£6.55,Revenue,Bunzl UK Ltd T/A Cleaning and HygieneSupplies,0
South Ribble Borough Council,http://statistics.data.gov.uk/id/local-authority/30UE,Recreation & Sport,Consumable Clng Materials,2711,Breazy Microfibre Cloth Yellow 37x30CM (PK 25) 1 @ £6.55,23/06/2021,0000469120,£6.55,Revenue,Bunzl UK Ltd T/A Cleaning and HygieneSupplies,0
South Ribble Borough Council,http://statistics.data.gov.uk/id/local-authority/30UE,Recreation & Sport,Consumable Clng Materials,2711,CleanWorks PY Kentucky Mophead 12OZ/340G (EA) 536177 5 @ £1.19,23/06/2021,0000469120,£5.95,Revenue,Bunzl UK Ltd T/A Cleaning and HygieneSupplies,0
South Ribble Borough Council,http://statistics.data.gov.uk/id/local-authority/30UE,Recreation & Sport,Consumable Clng Materials,2711,Forrestberry Foam Hand Wash ADX-12 1250ML (CS 3)8816-03EEU00 3 @ £20.01,23/06/2021,0000469120,£60.03,Revenue,Bunzl UK Ltd T/A Cleaning and HygieneSupplies,0
South Ribble Borough Council,http://statistics.data.gov.uk/id/local-authority/30UE,Recreation & Sport,Consumable Clng Materials,2711,GR0006 200 RefuseSacks H/D 18x29x38in Blk 10kg+ 2 @ £8.95,23/06/2021,0000469120,£17.90,Revenue,Bunzl UK Ltd T/A Cleaning and HygieneSupplies,0
South Ribble Borough Council,http://statistics.data.gov.uk/id/local-authority/30UE,Recreation & Sport,Consumable Clng Materials,2711,Hand Sanitiser Wipe (Tub 150) W68230 PAL039 6 @ £4.19,23/06/2021,0000469120,£12.57,Revenue,Bunzl UK Ltd T/A Cleaning and HygieneSupplies,0
South Ribble Borough Council,http://statistics.data.gov.uk/id/local-authority/30UE,Recreation & Sport,Consumable Clng Materials,2711,Magic Dispel Hard Surface Destainer 750ML(CS 6)1024 (///)WW 2 @ £11.75,23/06/2021,0000469120,£23.50,Revenue,Bunzl UK Ltd T/A Cleaning and HygieneSupplies,0
South Ribble Borough Council,http://statistics.data.gov.uk/id/local-authority/30UE,Recreation & Sport,Consumable Clng Materials,2711,NVM 1CH Dust Bag 200/225/250 (PK 10) 604015 2 @ £12.45,23/06/2021,0000469120,£9.76,Revenue,Bunzl UK Ltd T/A Cleaning and HygieneSupplies,0
South Ribble Borough Council,http://statistics.data.gov.uk/id/local-authority/30UE,Recreation & Sport,Consumable Clng Materials,2711,RB6 General Purpose Hand Scourer Green 220x150MM (PK 10) RB6 4 @ £1.17,23/06/2021,0000469120,£4.68,Revenue,Bunzl UK Ltd T/A Cleaning and HygieneSupplies,0
South Ribble Borough Council,http://statistics.data.gov.uk/id/local-authority/30UE,Recreation & Sport,Consumable Clng Materials,2711,Tork Basic Paper Centrefeed Blue 150M 2Ply (CS 6) 128107 3 @ £17.55,23/06/2021,0000469120,£52.65,Revenue,Bunzl UK Ltd T/A Cleaning and HygieneSupplies,0
South Ribble Borough Council,http://statistics.data.gov.uk/id/local-authority/30UE,Recreation & Sport,Consumable Clng Materials,2711,Tork Mini Jumbo Toilet Roll 170M White 2Ply (CS 12) 120238 4 @ £19.99,23/06/2021,0000469120,£79.96,Revenue,Bunzl UK Ltd T/A Cleaning and HygieneSupplies,0
South Ribble Borough Council,http://statistics.data.gov.uk/id/local-authority/30UE,Capital,Cap Contract Payment,C230,To carry out urgent works to the unsafe memorials within the closed grave yard at St Mary`s Church Penwortham.,23/06/2021,0000469068,"£3,000.00",Revenue,C B Price & Son Ltd,0
South Ribble Borough Council,http://statistics.data.gov.uk/id/local-authority/30UE,Capital,Cap Contract Payment,C230,To carry out urgent works to the unsafe memorials within the closed grave yard at St Mary`s Church Penwortham.,23/06/2021,0000469095,"£3,000.00",Revenue,C B Price & Son Ltd,0
South Ribble Borough Council,http://statistics.data.gov.uk/id/local-authority/30UE,Central Support Services,Materials General,4040,"1X HYDRAULIC FILTERS, PO20 ZRX, JFC16814",18/06/2021,0000468870,£351.26,Revenue,C P DAVIDSON & SONS LTD,0
South Ribble Borough Council,http://statistics.data.gov.uk/id/local-authority/30UE,Recreation & Sport,Cleaning,2710,3953 SEBO BS360 ECO UPRIGHT VACUUM,09/06/2021,0000468556,£255.00,Revenue,Capital Cleaning (Kent) Ltd,0
South Ribble Borough Council,http://statistics.data.gov.uk/id/local-authority/30UE,Homelessness,Temporary Accommodation,5311,Emergency accommodation placement NAMES REDACTED ADDRESS REDACTED 5.5.2021 £59/night charged 4 weekly.,16/06/2021,0000468851,"£1,652.00",Revenue,Cedar Tree Houses,0
South Ribble Borough Council,http://statistics.data.gov.uk/id/local-authority/30UE,Central Support Services,External Contractors Charges,4570,Settlement costs as per agreement with South Ribble Borough Council. Your ref: GLADR059307,25/06/2021,0000464063,"£29,250.00",Revenue,CHORLEY BOROUGH COUNCIL,0
South Ribble Borough Council,http://statistics.data.gov.uk/id/local-authority/30UE,Central Support Services,External Contractors Charges,4570,Additional costs 2019/2020 to be charged to South Ribble Borough Council. Your Ref:GLADR059397,25/06/2021,0000464063,"£83,403.80",Revenue,CHORLEY BOROUGH COUNCIL,0
South Ribble Borough Council,http://statistics.data.gov.uk/id/local-authority/30UE,Corporate Management,Consultancy Fees,4541,"Work carried out by CIPFA.Co,UK on extending shared services between Chorley and South Ribble in 2019/2020. Your Ref: GLADR059306",25/06/2021,0000464063,"£17,965.50",Revenue,CHORLEY BOROUGH COUNCIL,0
South Ribble Borough Council,http://statistics.data.gov.uk/id/local-authority/30UE,Central Support Services,Materials General,4040,"1 x seatbelt, PJ62UCG, JFC16682",04/06/2021,0000468483,£257.74,Revenue,CICELEY COMMERCIALS LTD,0
South Ribble Borough Council,http://statistics.data.gov.uk/id/local-authority/30UE,Central Support Services,Materials General,4040,"1x service kit, PO20 ZRX, JFC16814 (NAME REDACTED)",18/06/2021,0000468892,£304.32,Revenue,CICELEY COMMERCIALS LTD,0
South Ribble Borough Council,http://statistics.data.gov.uk/id/local-authority/30UE,Homelessness,Contributions to Other Bodies,4730,Rent in Advance NAME REDACTED ADDRESS REDACTED,09/06/2021,0000468482,£414.84,Revenue,COMMUNITY GATEWAY HOUSING ASSOCIATION,0
South Ribble Borough Council,http://statistics.data.gov.uk/id/local-authority/30UE,Capital,Cap Contract Payment,C230,Former Mckenzie Arms - New Supplies Quotation 210316 - P20607  as per NAME REDACTED request,23/06/2021,0000468903,"£1,649.60",Revenue,connections2energy ltd,0
South Ribble Borough Council,http://statistics.data.gov.uk/id/local-authority/30UE,Local Tax Collection,Stationery General,4130,Stationery April - October 2021,18/06/2021,0000467047,"£1,684.57",Revenue,CRITIQOM,0
South Ribble Borough Council,http://statistics.data.gov.uk/id/local-authority/30UE,Local Tax Collection,Postage General,4291,Postage April - October 2021,02/06/2021,0000468338,£404.52,Revenue,CRITIQOM,0
South Ribble Borough Council,http://statistics.data.gov.uk/id/local-authority/30UE,Local Tax Collection,Postage General,4291,Postage April - October 2021,23/06/2021,0000469154,£285.40,Revenue,CRITIQOM,0
South Ribble Borough Council,http://statistics.data.gov.uk/id/local-authority/30UE,Local Tax Collection,Postage General,4291,Postage April - October 2021,25/06/2021,0000469252,"£1,313.33",Revenue,CRITIQOM,0
South Ribble Borough Council,http://statistics.data.gov.uk/id/local-authority/30UE,Local Tax Collection,Stationery General,4130,Stationery April - October 2021,25/06/2021,0000469253,£431.38,Revenue,CRITIQOM,0
South Ribble Borough Council,http://statistics.data.gov.uk/id/local-authority/30UE,Local Tax Collection,Stationery General,4130,Stationery April - October 2021,25/06/2021,0000469278,£456.12,Revenue,CRITIQOM,0
South Ribble Borough Council,http://statistics.data.gov.uk/id/local-authority/30UE,Central Support Services,Planned Annual Repair & Maintenance,2021,"Maintenance 2021/2022, 1x McSmart Industrial Water Chiller, 1x McQuay Air Handling Unit - Business Standard maintenance package",23/06/2021,0000469133,£673.89,Revenue,DAIKIN APPLIED SERVICE,0
South Ribble Borough Council,http://statistics.data.gov.uk/id/local-authority/30UE,Local Tax Collection,Professional Fees,4510,Hub software,09/06/2021,0000468613,"£1,750.00",Revenue,Destin Solutions Limited,0
South Ribble Borough Council,http://statistics.data.gov.uk/id/local-authority/30UE,Central Support Services,Telecomms - Mobile,4260,01 JUNE 2021,18/06/2021,0000468705,"£4,241.88",Revenue,EE Ltd,0
South Ribble Borough Council,http://statistics.data.gov.uk/id/local-authority/30UE,Open Spaces,GM Refurbishment,4657,supply elec to old coach house,11/06/2021,0000468749,£995.72,Revenue,ELECTRICITY NORTH WEST LTD,0
South Ribble Borough Council,http://statistics.data.gov.uk/id/local-authority/30UE,Short Term Creditors,Manual Control,0001,,18/06/2021,0000469049,£525.00,Revenue,Elite Engineering Site Services Ltd,0
South Ribble Borough Council,http://statistics.data.gov.uk/id/local-authority/30UE,Central Support Services,Reference Books,4142,1 x Local Government Chronicle - Digital only subscription July 2021 to  June 2022,16/06/2021,0000468845,£306.00,Revenue,Emap Publishing Ltd,0
South Ribble Borough Council,http://statistics.data.gov.uk/id/local-authority/30UE,Waste Collection,Waste Permits,5110,21/5/2021,23/06/2021,0000468581,"£1,295.00",Revenue,ENVIRONMENT AGENCY,0
South Ribble Borough Council,http://statistics.data.gov.uk/id/local-authority/30UE,Capital,Cap Contract Payment,C230,For the provision of M& E Services Design and Consultancy for the McKenzie Arms project as agreed with NAME REDACTED,16/06/2021,0000468675,"£4,000.00",Revenue,Envision Energy Ltd,0
South Ribble Borough Council,http://statistics.data.gov.uk/id/local-authority/30UE,Central Support Services,Materials General,4040,10 x sole plates - BIN1265,04/06/2021,0000467214,£312.60,Revenue,F R SHARROCK LTD,0
South Ribble Borough Council,http://statistics.data.gov.uk/id/local-authority/30UE,Central Support Services,Materials General,4040,100 x sole plate screws- BIN 1114,04/06/2021,0000467214,£29.00,Revenue,F R SHARROCK LTD,0
South Ribble Borough Council,http://statistics.data.gov.uk/id/local-authority/30UE,Central Support Services,Materials General,4040,10 x lift ram bushes - BIN1040,04/06/2021,0000467214,£21.36,Revenue,F R SHARROCK LTD,0
South Ribble Borough Council,http://statistics.data.gov.uk/id/local-authority/30UE,Open Spaces,Materials General,4040,"1 x new seat base only, fitted with Air suspension unit",25/06/2021,0000467321,£710.00,Revenue,F R SHARROCK LTD,0
South Ribble Borough Council,http://statistics.data.gov.uk/id/local-authority/30UE,Waste Collection,External Contractors Charges,4570,Residual Waste Collections May 2021,23/06/2021,0000469094,"£46,869.90",Revenue,FCC Environment Services (UK) Ltd,0
South Ribble Borough Council,http://statistics.data.gov.uk/id/local-authority/30UE,Recycling,External Contractors Charges,4570,Dry recycling (Non Terraced) Collections May 2021,23/06/2021,0000469094,"£47,981.92",Revenue,FCC Environment Services (UK) Ltd,0
South Ribble Borough Council,http://statistics.data.gov.uk/id/local-authority/30UE,Recycling,External Contractors Charges,4570,Dry Recyclable (Terraced) Collections May 2021,23/06/2021,0000469094,"£2,283.78",Revenue,FCC Environment Services (UK) Ltd,0
South Ribble Borough Council,http://statistics.data.gov.uk/id/local-authority/30UE,Recycling,External Contractors Charges,4570,Organic Waste (Non Terraced) Collections May 2021,23/06/2021,0000469094,"£33,222.59",Revenue,FCC Environment Services (UK) Ltd,0
South Ribble Borough Council,http://statistics.data.gov.uk/id/local-authority/30UE,Trade Waste,External Contractors Charges,4570,Schedule 2 Properties Collections May 2021,23/06/2021,0000469094,"£1,910.50",Revenue,FCC Environment Services (UK) Ltd,0
South Ribble Borough Council,http://statistics.data.gov.uk/id/local-authority/30UE,Trade Waste,External Contractors Charges,4570,Commercial Waste Collections May 2021,23/06/2021,0000469094,"£7,439.27",Revenue,FCC Environment Services (UK) Ltd,0
South Ribble Borough Council,http://statistics.data.gov.uk/id/local-authority/30UE,Waste Collection,External Contractors Charges,4570,Bulky Waste Collections May 2021,23/06/2021,0000469094,"£1,032.37",Revenue,FCC Environment Services (UK) Ltd,0
South Ribble Borough Council,http://statistics.data.gov.uk/id/local-authority/30UE,Waste Collection,External Contractors Charges,4570,WEEE Collections May 2021,23/06/2021,0000469094,£387.78,Revenue,FCC Environment Services (UK) Ltd,0
South Ribble Borough Council,http://statistics.data.gov.uk/id/local-authority/30UE,Waste Collection,External Contractors Charges,4570,Clinical Waste Collections May 2021,23/06/2021,0000469094,£660.62,Revenue,FCC Environment Services (UK) Ltd,0
South Ribble Borough Council,http://statistics.data.gov.uk/id/local-authority/30UE,Waste Collection,External Contractors Charges,4570,Replacement Bins May 2021,23/06/2021,0000469094,"£5,000.00",Revenue,FCC Environment Services (UK) Ltd,0
South Ribble Borough Council,http://statistics.data.gov.uk/id/local-authority/30UE,Waste Collection,External Contractors Charges,4570,Additional Properties May 2021,23/06/2021,0000469094,"£4,116.80",Revenue,FCC Environment Services (UK) Ltd,0
South Ribble Borough Council,http://statistics.data.gov.uk/id/local-authority/30UE,Short Term Creditors,Amount Paid,0030,retention refuse,23/06/2021,0000469094,"-£3,120.86",Revenue,FCC Environment Services (UK) Ltd,0
South Ribble Borough Council,http://statistics.data.gov.uk/id/local-authority/30UE,Short Term Creditors,Amount Paid,0030,retention collection,23/06/2021,0000469094,"-£4,174.41",Revenue,FCC Environment Services (UK) Ltd,0
South Ribble Borough Council,http://statistics.data.gov.uk/id/local-authority/30UE,Waste Collection,External Contractors Charges,4570,Additional WEEE Collections- May 2021,25/06/2021,0000469251,£755.08,Revenue,FCC Environment Services (UK) Ltd,0
South Ribble Borough Council,http://statistics.data.gov.uk/id/local-authority/30UE,Waste Collection,External Contractors Charges,4570,Additional Bulky Waste Collections- May 2021,25/06/2021,0000469251,"£1,009.80",Revenue,FCC Environment Services (UK) Ltd,0
South Ribble Borough Council,http://statistics.data.gov.uk/id/local-authority/30UE,Short Term Creditors,Amount Paid,0030,retention,25/06/2021,0000469251,-£97.07,Revenue,FCC Environment Services (UK) Ltd,0
South Ribble Borough Council,http://statistics.data.gov.uk/id/local-authority/30UE,Central Support Services,Materials General,4040,Pitchmarker Q2,11/06/2021,0000468623,£498.24,Revenue,Fleet Line Markers Limited,0
South Ribble Borough Council,http://statistics.data.gov.uk/id/local-authority/30UE,Central Support Services,Safety  Equipment,4016,2 x Stein Bleed Control Kit @ £63.75,09/06/2021,0000468660,£127.50,Revenue,FR Jones and Son Ltd,0
South Ribble Borough Council,http://statistics.data.gov.uk/id/local-authority/30UE,Central Support Services,Safety  Equipment,4016,2 x Celox emergency haemostatic agent @ £16.41,09/06/2021,0000468660,£35.62,Revenue,FR Jones and Son Ltd,0
South Ribble Borough Council,http://statistics.data.gov.uk/id/local-authority/30UE,Central Support Services,Safety  Equipment,4016,2 WoundClot haemostatic trauma gauze dressing 5cm x 1cm @ £7.00,09/06/2021,0000468660,£14.00,Revenue,FR Jones and Son Ltd,0
South Ribble Borough Council,http://statistics.data.gov.uk/id/local-authority/30UE,Central Support Services,Safety  Equipment,4016,4 x Stein basic bleed control kit (Standard Plus) @ £36.55,09/06/2021,0000468660,£146.20,Revenue,FR Jones and Son Ltd,0
South Ribble Borough Council,http://statistics.data.gov.uk/id/local-authority/30UE,Central Support Services,Safety  Equipment,4016,2 x Emergency bandage (4``) @ £6.08,09/06/2021,0000468660,£12.16,Revenue,FR Jones and Son Ltd,0
South Ribble Borough Council,http://statistics.data.gov.uk/id/local-authority/30UE,Recreation & Sport,Planned Annual Repair & Maintenance,2021,"2021/2022 service contract for Leyland Leisure Centre, visits to the filtration system, balance tank cleaning, for chemical dosing systems",23/06/2021,0000469139,£300.00,Revenue,FT Leisure Ltd,0
South Ribble Borough Council,http://statistics.data.gov.uk/id/local-authority/30UE,Recreation & Sport,Planned Annual Repair & Maintenance,2021,"2021/2022 service contract for Leyland Leisure Centre, visits to the filtration system, balance tank cleaning, for chemical dosing systems",23/06/2021,0000469140,£300.00,Revenue,FT Leisure Ltd,0
South Ribble Borough Council,http://statistics.data.gov.uk/id/local-authority/30UE,Recreation & Sport,Planned Annual Repair & Maintenance,2021,"2021/2022 service contract for Bamber Bridge Leisure Centre, visits to the filtration system, balance tank cleaning, chemical dosing systems",23/06/2021,0000469141,£300.00,Revenue,FT Leisure Ltd,0
South Ribble Borough Council,http://statistics.data.gov.uk/id/local-authority/30UE,Recreation & Sport,Planned Annual Repair & Maintenance,2021,"2021/2022 service contract for Bamber Bridge Leisure Centre, visits to the filtration system, balance tank cleaning, chemical dosing systems",23/06/2021,0000469142,£300.00,Revenue,FT Leisure Ltd,0
South Ribble Borough Council,http://statistics.data.gov.uk/id/local-authority/30UE,Recreation & Sport,Planned Annual Repair & Maintenance,2021,"2021/2022 service contract for Penwortham Leisure Centre, visits to the filtration system, balance tank cleaning, chemical dosing systems",23/06/2021,0000469143,£300.00,Revenue,FT Leisure Ltd,0
South Ribble Borough Council,http://statistics.data.gov.uk/id/local-authority/30UE,Surplus or Deficit on Trading,Reactive Repair & Maintenance,2020,ADDRESS REDACTED - repairs from the inside of the store to the 3no. roof lights. All for the sum of £350.00 + VAT,04/06/2021,0000468478,£350.00,Revenue,Gables Uk Ltd,0
South Ribble Borough Council,http://statistics.data.gov.uk/id/local-authority/30UE,Recreation & Sport,Reactive Repair & Maintenance,2020,Delivery of Group exercise classes at Leyland Leisure Centre May 2021,16/06/2021,0000468882,£390.00,Revenue,Gillian Hall,0
South Ribble Borough Council,http://statistics.data.gov.uk/id/local-authority/30UE,Capital,Capital Grant,C570,DFG WORK TO ADAPT FOR LEVEL ACCESS SHOWER AT ADDRESS REDACTED AS PER SRBC PLANS AND QUOTE OF £4189.31,16/06/2021,0000468621,"£4,189.31",Revenue,GOS Heating Ltd,0
South Ribble Borough Council,http://statistics.data.gov.uk/id/local-authority/30UE,Capital,Capital Grant,C570,DFG WORK TO ADAPT A LEVEL ACCESS SHOWER AT ADDRESS REDACTED AS PER SRBC PLANS AND QUOTE OF £4335.00,16/06/2021,0000468622,"£4,335.00",Revenue,GOS Heating Ltd,0
South Ribble Borough Council,http://statistics.data.gov.uk/id/local-authority/30UE,Corporate Management,External Audit Fees,4512,South Ribble Borough Council - Main Audit Fee 2020-21,25/06/2021,0000469212,"£8,455.25",Revenue,Grant Thornton UK LLP,0
South Ribble Borough Council,http://statistics.data.gov.uk/id/local-authority/30UE,Open Spaces,GM Refurbishment,4657,"to carry out a Childsplay carpet repair (2m2) under the Titan Rotator at Farington Park Playground, PR25 4QG.",25/06/2021,0000468878,£350.00,Revenue,GROUNDWORK LEISURE SERVICES LTD,0
South Ribble Borough Council,http://statistics.data.gov.uk/id/local-authority/30UE,Open Spaces,Materials General,4040,"Lime Green Printed Sacks  - Community Litter Picking on Behalf of SRBC, 455 x 760 x 990mm, 200g Bi Modal Super Plus Material FOC Artwork",25/06/2021,0000468477,"£1,973.20",Revenue,HARRISONS PACKAGING LTD,0
South Ribble Borough Council,http://statistics.data.gov.uk/id/local-authority/30UE,Capital,Cap Contract Payment,C230,Penwortham Masterplan Project,16/06/2021,0000468891,"£8,033.00",Revenue,Hem Des LLP,0
South Ribble Borough Council,http://statistics.data.gov.uk/id/local-authority/30UE,Recreation & Sport,Licences Fee General,488B,,04/06/2021,0000468345,"£1,000.00",Revenue,HIGHER WALTON COMMUNITY CENTRE,0
South Ribble Borough Council,http://statistics.data.gov.uk/id/local-authority/30UE,Open Spaces,Hiring Expenses,3212,"Concrete Step Grab - Write Off Value, Damaged beyond repair - NAME REDACTED",16/06/2021,0000468902,£405.96,Revenue,HSS HIRE SERVICE GROUP LTD,0
South Ribble Borough Council,http://statistics.data.gov.uk/id/local-authority/30UE,Capital,Cap Contract Payment,C230,"Post Contract Variations, Site Meetings, Financial Statements (based on 7 months)",09/06/2021,0000468636,"£2,750.80",Revenue,Ian Brew QS Consultancy,0
South Ribble Borough Council,http://statistics.data.gov.uk/id/local-authority/30UE,Development Control,Legal,4821,Consultancy work re Chain House Lane Planning Appeal,02/06/2021,0000468457,"£4,390.00",Revenue,Iceni Projects Limited,0
South Ribble Borough Council,http://statistics.data.gov.uk/id/local-authority/30UE,Central Support Services,Applications Systems,4248,Nessus Professional - On Premise Annual Subs,02/06/2021,0000468413,"£1,956.49",Revenue,Info Security People Ltd,0
South Ribble Borough Council,http://statistics.data.gov.uk/id/local-authority/30UE,Local Tax Collection,Professional Fees,4510,RV Finder - Maran Farm Stables,18/06/2021,0000469089,£345.00,Revenue,Inform CPI Ltd,0
South Ribble Borough Council,http://statistics.data.gov.uk/id/local-authority/30UE,Capital,Cap Contract Payment,C230,"Architects Fees for Stages 5 and 6, Hurst Grange Coach House, Penwortham",02/06/2021,0000468517,"£2,140.00",Revenue,Ivan Wilson Architect,0
South Ribble Borough Council,http://statistics.data.gov.uk/id/local-authority/30UE,Capital,Cap Contract Payment,C230,"Undertake works to the temporary café unit at Worden Park to connect mains & foul water connection, Inc. vented hot water, WHB and pipework",09/06/2021,0000468657,"£1,575.00",Revenue,J Whittle plumbing & heating,0
South Ribble Borough Council,http://statistics.data.gov.uk/id/local-authority/30UE,Open Spaces,GM Refurbishment,4657,Hire of Cherry Picker c/w spreader plates. On hire 7.6.21 (1 week),16/06/2021,0000469046,£630.00,Revenue,K H HIRE SERVICES,0
South Ribble Borough Council,http://statistics.data.gov.uk/id/local-authority/30UE,Open Spaces,Plants Trees & Shrubs,4046,1 x NHS design carpet bed. For delivery week 21st-25th June 2021. Please deliver by 2pm. Please give 48hours notice of delivery,25/06/2021,0000469137,"£2,580.00",Revenue,KERNOCK PARK PLANTS,0
South Ribble Borough Council,http://statistics.data.gov.uk/id/local-authority/30UE,Regulatory Services,Poisons & Baits,4041,"Gull control at Fleetwood Police Station as per your quotation, 1 x Scarecrow 360 Solar Powered",09/06/2021,0000468319,"£2,160.00",Revenue,KILLGERM CHEMICALS LTD,0
South Ribble Borough Council,http://statistics.data.gov.uk/id/local-authority/30UE,Regulatory Services,Poisons & Baits,4041,7 x Wind Action Owl,09/06/2021,0000468319,£97.58,Revenue,KILLGERM CHEMICALS LTD,0
South Ribble Borough Council,http://statistics.data.gov.uk/id/local-authority/30UE,Regulatory Services,Poisons & Baits,4041,7 x Hawk Kite Wall Mounted Fixings (SS),09/06/2021,0000468319,£120.00,Revenue,KILLGERM CHEMICALS LTD,0
South Ribble Borough Council,http://statistics.data.gov.uk/id/local-authority/30UE,Regulatory Services,Poisons & Baits,4041,Avifix Adhesive,09/06/2021,0000468319,£4.08,Revenue,KILLGERM CHEMICALS LTD,0
South Ribble Borough Council,http://statistics.data.gov.uk/id/local-authority/30UE,Regulatory Services,Poisons & Baits,4041,5 x Hawk Kite,09/06/2021,0000468620,£367.15,Revenue,KILLGERM CHEMICALS LTD,0
South Ribble Borough Council,http://statistics.data.gov.uk/id/local-authority/30UE,Capital,Cap Contract Payment,C230,"to be paid, coded by NAME REDACTED as PO closed",23/06/2021,0000469085,"£3,397.50",Revenue,KNIGHT KAVANAGH & PAGE LTD,0
South Ribble Borough Council,http://statistics.data.gov.uk/id/local-authority/30UE,Open Spaces,GM Refurbishment,4657,1 x repair kit for equipment on Hurst Grange Park,25/06/2021,0000469256,£560.00,Revenue,KOMPAN LTD,0
South Ribble Borough Council,http://statistics.data.gov.uk/id/local-authority/30UE,Open Spaces,GM Refurbishment,4657,Carriage,25/06/2021,0000469256,£61.60,Revenue,KOMPAN LTD,0
South Ribble Borough Council,http://statistics.data.gov.uk/id/local-authority/30UE,Central Support Services,Materials General,4040,4000 litres Bulk Adblu @ 0.23ppl,23/06/2021,0000468888,£920.23,Revenue,LANCASHIRE OILS LTD,0
South Ribble Borough Council,http://statistics.data.gov.uk/id/local-authority/30UE,Waste Collection,Clinical Waste Disposal,5112,February 2021 - Incineration of Clinical Waste,02/06/2021,0000468489,£639.61,Revenue,LANCASHIRE TEACHING FT,0
South Ribble Borough Council,http://statistics.data.gov.uk/id/local-authority/30UE,Waste Collection,Clinical Waste Disposal,5112,March 2021 - Incineration of Clinical Waste,11/06/2021,0000468697,£730.07,Revenue,LANCASHIRE TEACHING FT,0
South Ribble Borough Council,http://statistics.data.gov.uk/id/local-authority/30UE,Short Term Debtors,Amount Paid,0030,Enterprise Zone Business Rates Income payment for the LEP 2019/2020,04/06/2021,0000466509,"£111,309.00",Revenue,LANCS COUNTY COUNCIL,0
South Ribble Borough Council,http://statistics.data.gov.uk/id/local-authority/30UE,Planning Policy,Contributions to Other Bodies,4730,City Deal New Homes Bonus 2020/2021 Quarter 1,04/06/2021,0000466511,"£150,232.25",Revenue,LANCS COUNTY COUNCIL,0
South Ribble Borough Council,http://statistics.data.gov.uk/id/local-authority/30UE,Planning Policy,Contributions to Other Bodies,4730,City Deal New Homes Bonus 2020/2021 Quarter 2,04/06/2021,0000466511,"£150,232.35",Revenue,LANCS COUNTY COUNCIL,0
South Ribble Borough Council,http://statistics.data.gov.uk/id/local-authority/30UE,Planning Policy,Contributions to Other Bodies,4730,City Deal New Homes Bonus 2020/2021 Quarter 3,04/06/2021,0000466511,"£150,232.35",Revenue,LANCS COUNTY COUNCIL,0
South Ribble Borough Council,http://statistics.data.gov.uk/id/local-authority/30UE,Planning Policy,Contributions to Other Bodies,4730,City Deal New Homes Bonus 2020/2021 Quarter 4,04/06/2021,0000466511,"£150,232.35",Revenue,LANCS COUNTY COUNCIL,0
South Ribble Borough Council,http://statistics.data.gov.uk/id/local-authority/30UE,Capital,Capital Grant,C570,DFG WORKS TO SUPPLY AND INSTALL STAIRLIFT AT ADDRESS REDACTED AS PER QUOTE SUPPLIED COST £1316.00,16/06/2021,0000468680,"£1,046.00",Revenue,LANCS COUNTY COUNCIL,0
South Ribble Borough Council,http://statistics.data.gov.uk/id/local-authority/30UE,Capital,Capital Grant,C570,DFG WORK TO SUPPLY AND INSTALL A STARILIFT AT ADDRESS REDACTED AS PER QUOTE SUPPLIED OF £3803.00,16/06/2021,0000468681,"£3,803.00",Revenue,LANCS COUNTY COUNCIL,0
South Ribble Borough Council,http://statistics.data.gov.uk/id/local-authority/30UE,Capital,Capital Grant,C570,DFG WORK TO SUPPLY AND INSTALL STAIRLIFT AT ADDRESS REDACTED AS PER QUOTE SUPPLIED OF £1497.00,16/06/2021,0000468818,"£1,497.00",Revenue,LANCS COUNTY COUNCIL,0
South Ribble Borough Council,http://statistics.data.gov.uk/id/local-authority/30UE,Capital,Capital Grant,C570,DFG TO SUPPLY AND INSTALL HOISTING EQUIPMENT AT ADDRESS REDACTED AS PER QUOTE SUPPLIED OF £1301.44,16/06/2021,0000468819,"£1,301.44",Revenue,LANCS COUNTY COUNCIL,0
South Ribble Borough Council,http://statistics.data.gov.uk/id/local-authority/30UE,Central Support Services,Lancashire Payroll Service,4531,SRBC PAYROLL SLA - ADDITIONAL ASSIGNMENT CHARGE,16/06/2021,0000468884,"£8,199.00",Revenue,LANCS COUNTY COUNCIL,0
South Ribble Borough Council,http://statistics.data.gov.uk/id/local-authority/30UE,Central Support Services,Lancashire Payroll Service,4531,PAYROLL SERVICES APRIL - JUNE 2021,16/06/2021,0000468885,"£5,623.75",Revenue,LANCS COUNTY COUNCIL,0
South Ribble Borough Council,http://statistics.data.gov.uk/id/local-authority/30UE,Central Support Services,Lancashire Payroll Service,4531,PAYROLL SERVICES JULY - SEPTEMBER 2021,16/06/2021,0000468885,"£5,623.75",Revenue,LANCS COUNTY COUNCIL,0
South Ribble Borough Council,http://statistics.data.gov.uk/id/local-authority/30UE,Central Support Services,Lancashire Payroll Service,4531,PAYROLL SERVICES OCTOBER - DECEMBER 2021,16/06/2021,0000468885,"£5,623.75",Revenue,LANCS COUNTY COUNCIL,0
South Ribble Borough Council,http://statistics.data.gov.uk/id/local-authority/30UE,Central Support Services,Lancashire Payroll Service,4531,PAYROLL SERVICES JANUARY - MARCH 2022,16/06/2021,0000468885,"£5,623.75",Revenue,LANCS COUNTY COUNCIL,0
South Ribble Borough Council,http://statistics.data.gov.uk/id/local-authority/30UE,Local Land Charges,L C C General,4530,LAND CHARGES - APRIL 2021,16/06/2021,0000468887,£805.00,Revenue,LANCS COUNTY COUNCIL,0
South Ribble Borough Council,http://statistics.data.gov.uk/id/local-authority/30UE,Central Support Services,Materials General,4040,"1 x airbag, YD19ATZ, JFC16724",04/06/2021,0000468415,£345.16,Revenue,LANCS DAF,0
South Ribble Borough Council,http://statistics.data.gov.uk/id/local-authority/30UE,Central Support Services,Materials General,4040,"1 x full service kit, 1 x menu button, PF18JOV, JFC16733",04/06/2021,0000468462,£477.26,Revenue,LANCS DAF,0
South Ribble Borough Council,http://statistics.data.gov.uk/id/local-authority/30UE,Central Support Services,Materials General,4040,1 Brake Caliper YA19 NKC JFC16311,23/06/2021,0000469079,£270.00,Revenue,LANCS DAF,0
South Ribble Borough Council,http://statistics.data.gov.uk/id/local-authority/30UE,Central Support Services,External Contractors Charges,4570,Spec repair YA19 NGN JFC16406,23/06/2021,0000469080,£491.79,Revenue,LANCS DAF,0
South Ribble Borough Council,http://statistics.data.gov.uk/id/local-authority/30UE,Short Term Creditors,Bank ac Unident Income,0008,refund of payment made in error,16/06/2021,0000468867,£516.00,Revenue,Lanley Developments,0
South Ribble Borough Council,http://statistics.data.gov.uk/id/local-authority/30UE,Capital,Cap Contract Payment,C230,"5 x Leisure centre, double sided, end fixed flag sign, 4 x Tennis centre, double sided, end fixed flag sign, 2 x Galvanised steel posts",18/06/2021,0000468894,£479.95,Revenue,LCC SIGN SHOP,0
South Ribble Borough Council,http://statistics.data.gov.uk/id/local-authority/30UE,Capital,Cap Contract Payment,C230,"PRODUCING TENDER SPECIFICATION TO PLANNING APPROVAL REQUIRMENTS AND BUILDING CONTROL, QS COSTS FOR SPEC.",18/06/2021,0000469048,£490.00,Revenue,LEE MCGREGOR LMC ARCHITECTURE LTD,0
South Ribble Borough Council,http://statistics.data.gov.uk/id/local-authority/30UE,Capital,Cap Contract Payment,C230,non vat items,18/06/2021,0000469048,£175.00,Revenue,LEE MCGREGOR LMC ARCHITECTURE LTD,0
South Ribble Borough Council,http://statistics.data.gov.uk/id/local-authority/30UE,Recreation & Sport,Software Licensing,4243,"Contract Description – Leisure management software, Proposed Contract Period – 3 years, Annual Value of Contract- £41,292.48 licence fees",16/06/2021,0000468473,"£4,697.65",Revenue,Legend Software,0
South Ribble Borough Council,http://statistics.data.gov.uk/id/local-authority/30UE,Recreation & Sport,Software Licensing,4243,"Contract Description – Leisure management software, Proposed Contract Period – 3 years, Annual Value of Contract- £41,292.48 licence fees",16/06/2021,0000468474,£750.96,Revenue,Legend Software,0
South Ribble Borough Council,http://statistics.data.gov.uk/id/local-authority/30UE,Recreation & Sport,Software Licensing,4243,"Contract Description – Leisure management software, Proposed Contract Period – 3 years, Annual Value of Contract- £41,292.48 licence fees",16/06/2021,0000468632,"£2,648.25",Revenue,Legend Software,0
South Ribble Borough Council,http://statistics.data.gov.uk/id/local-authority/30UE,Recreation & Sport,Maintenance & Repair,4013,Chemical Storage work floor x1 @£350 with £70 VAT,16/06/2021,0000468744,£350.00,Revenue,LeisureTeq,0
South Ribble Borough Council,http://statistics.data.gov.uk/id/local-authority/30UE,Recreation & Sport,Maintenance & Repair,4013,delivery Volume surcharge x1 @25 plus £5 VAT,16/06/2021,0000468744,£25.00,Revenue,LeisureTeq,0
South Ribble Borough Council,http://statistics.data.gov.uk/id/local-authority/30UE,Short Term Creditors,Manual Control,0001,,02/06/2021,0000468316,£630.00,Revenue,LEYLAND ST JAMES C OF E PRIMARY SCHOOL,0
South Ribble Borough Council,http://statistics.data.gov.uk/id/local-authority/30UE,Open Spaces,GM Refurbishment,4657,20 tonnes of Limestone 20mm to dust @ £20.80. Delivery to Worden Park Langdale Road entrance. Please advise on delivery date and ring prior,18/06/2021,0000468895,£413.92,Revenue,M C & M A STEWART HAULAGE LTD,0
South Ribble Borough Council,http://statistics.data.gov.uk/id/local-authority/30UE,Capital,Capital Grant,C570,DFG WORKS FOR LEVEL ACCESS BATHROOM AT ADDRESS REDACTED. NEW PROGRESS PROPERTY SO 50% OF QUOTE,16/06/2021,0000468643,"£3,067.66",Revenue,MAHONEY CONTRACTORS LTD,0
South Ribble Borough Council,http://statistics.data.gov.uk/id/local-authority/30UE,Capital,Capital Grant,C570,DFG WORKS FOR LEVEL ACCESS BATHROOM AT ADDRESS REDACTED AS PER QUOTE SUPPLIED OF £6430.11 MINUS 50%,16/06/2021,0000468650,"£3,175.06",Revenue,MAHONEY CONTRACTORS LTD,0
South Ribble Borough Council,http://statistics.data.gov.uk/id/local-authority/30UE,Capital,Capital Grant,C570,"DFG WORKS FOR LEVEL ACCESS SHOWER AT ADDRESS REDACTED. NEW PROGRESS PROPERTY, 50% OF QUOTE £6471.28",16/06/2021,0000468651,"£3,195.64",Revenue,MAHONEY CONTRACTORS LTD,0
South Ribble Borough Council,http://statistics.data.gov.uk/id/local-authority/30UE,Capital,Capital Grant,C570,"DFG WORKS FOR LEVEL ACCESS BATHROOM AT ADDRESS REDACTED. NEW PROGRESS PROPERTY, 50% OF QUOTE £6342.00",16/06/2021,0000468652,"£2,864.19",Revenue,MAHONEY CONTRACTORS LTD,0
South Ribble Borough Council,http://statistics.data.gov.uk/id/local-authority/30UE,Capital,Capital Grant,C570,"DFG WORKS FOR LEVEL ACCESS BATHROOM AT ADDRESS REDACTED. New progress property, 50% of quote £6959.31 to be paid",16/06/2021,0000468679,"£3,335.59",Revenue,MAHONEY CONTRACTORS LTD,0
South Ribble Borough Council,http://statistics.data.gov.uk/id/local-authority/30UE,Capital,Capital Grant,C570,DFG WORKS FOR REAR DOORWAY OPENING AT ADDRESS REDACTED. NEW PROGRESS PROPERTY 50% OF QUOTE £4814.00,16/06/2021,0000468821,"£2,407.00",Revenue,MAHONEY CONTRACTORS LTD,0
South Ribble Borough Council,http://statistics.data.gov.uk/id/local-authority/30UE,Capital,Capital Grant,C570,"DFG WORKS FOR LEVEL ACCESS BATHROOM AT ADDRESS REDACTED. NEW PROGRESS PROPERTY, 50% OF QUOTE £6036.28",23/06/2021,0000469223,"£3,018.14",Revenue,MAHONEY CONTRACTORS LTD,0
South Ribble Borough Council,http://statistics.data.gov.uk/id/local-authority/30UE,Capital,Capital Grant,C570,"DFG WORKS FOR LEVEL ACCESS BATHROOM AT ADDRESS REDACTED. NEW PROGRESS PROPERTY, 50% OF QUOTE £6898.66",23/06/2021,0000469281,"£3,401.83",Revenue,MAHONEY CONTRACTORS LTD,0
South Ribble Borough Council,http://statistics.data.gov.uk/id/local-authority/30UE,Capital,Capital Grant,C570,"DFG WORKS FOR LEVEL ACCESS BATHROOM AT ADDRESS REDACTED. NEW PROGRESS PROPERTY, 50% OF QUOTE £6584.71",23/06/2021,0000469282,"£2,950.99",Revenue,MAHONEY CONTRACTORS LTD,0
South Ribble Borough Council,http://statistics.data.gov.uk/id/local-authority/30UE,Parking Services,Materials General,4040,SPRING STREET T,25/06/2021,0000469222,£53.20,Revenue,Main Street Signs Ltd,0
South Ribble Borough Council,http://statistics.data.gov.uk/id/local-authority/30UE,Parking Services,Materials General,4040,2 x Leading to HEATHERLEIGH @ 21.00 each,25/06/2021,0000469222,£53.40,Revenue,Main Street Signs Ltd,0
South Ribble Borough Council,http://statistics.data.gov.uk/id/local-authority/30UE,Parking Services,Materials General,4040,WHAM LANE - CHAINHOUSE LANE,25/06/2021,0000469222,£61.40,Revenue,Main Street Signs Ltd,0
South Ribble Borough Council,http://statistics.data.gov.uk/id/local-authority/30UE,Parking Services,Materials General,4040,WHAM LANE,25/06/2021,0000469222,£43.80,Revenue,Main Street Signs Ltd,0
South Ribble Borough Council,http://statistics.data.gov.uk/id/local-authority/30UE,Parking Services,Materials General,4040,4 x BARNFIELD @ £39.00 each,25/06/2021,0000469222,£179.60,Revenue,Main Street Signs Ltd,0
South Ribble Borough Council,http://statistics.data.gov.uk/id/local-authority/30UE,Parking Services,Materials General,4040,ABBOTTS CLOSE 50 - 36,25/06/2021,0000469222,£53.70,Revenue,Main Street Signs Ltd,0
South Ribble Borough Council,http://statistics.data.gov.uk/id/local-authority/30UE,Parking Services,Materials General,4040,"2 x GREAT MEADOW T @ £44.00 each, DELIVERY CHARGE £37.00",25/06/2021,0000469222,£149.20,Revenue,Main Street Signs Ltd,0
South Ribble Borough Council,http://statistics.data.gov.uk/id/local-authority/30UE,Capital,Cap Professional Fees,C210,Surveyor fees for 12 month maternity cover for DFG cases £20000,02/06/2021,0000468444,"£2,060.00",Revenue,Mathew Butterworth Associates Limited,0
South Ribble Borough Council,http://statistics.data.gov.uk/id/local-authority/30UE,Central Support Services,Short Course,1402,SEASON TICKET UPGRADE 2021,04/06/2021,0000468593,£300.00,Revenue,MBL SEMINARS,0
South Ribble Borough Council,http://statistics.data.gov.uk/id/local-authority/30UE,Capital,Capital Grant,C570,DFG WORK FOR ADAPTATION FOR LEVEL ACCESS SHOWER AS PER SRBC PLANS AT ADDRESS REDACTED AS PER QUOTE £3750.00,23/06/2021,0000469204,"£3,750.00",Revenue,MSG Building and Construction Ltd,0
South Ribble Borough Council,http://statistics.data.gov.uk/id/local-authority/30UE,Recreation & Sport,Operational Equip & Tools,4010,"ET-ELS20 - Panasonic ET-ELS20 projection lens, PT-EW540-ET-LAE300 - Vivid Premium compatible lamp for PANASONIC PT-EW54",23/06/2021,0000468332,£439.28,Revenue,MYPREMIER LTD,0
South Ribble Borough Council,http://statistics.data.gov.uk/id/local-authority/30UE,Recreation & Sport,Operational Equip & Tools,4010,carriage,23/06/2021,0000468332,£8.00,Revenue,MYPREMIER LTD,0
South Ribble Borough Council,http://statistics.data.gov.uk/id/local-authority/30UE,Central Support Services,External Contractors Charges,4570,Steam Clean 20.5.21 RV14 DTZ JFC16680,23/06/2021,0000468618,£65.00,Revenue,NAYLORS TRANSPORT (LEYLAND) ltd,0
South Ribble Borough Council,http://statistics.data.gov.uk/id/local-authority/30UE,Central Support Services,External Contractors Charges,4570,Steam Clean 5.5.21 VO65 KRD JFC16772,23/06/2021,0000468618,£65.00,Revenue,NAYLORS TRANSPORT (LEYLAND) ltd,0
South Ribble Borough Council,http://statistics.data.gov.uk/id/local-authority/30UE,Central Support Services,External Contractors Charges,4570,Steam Clean 7.5.21 VK20NVV JFC16773,23/06/2021,0000468618,£65.00,Revenue,NAYLORS TRANSPORT (LEYLAND) ltd,0
South Ribble Borough Council,http://statistics.data.gov.uk/id/local-authority/30UE,Central Support Services,External Contractors Charges,4570,Steam Clean 10.5.21 VO65 KRE JFC16774,23/06/2021,0000468618,£65.00,Revenue,NAYLORS TRANSPORT (LEYLAND) ltd,0
South Ribble Borough Council,http://statistics.data.gov.uk/id/local-authority/30UE,Central Support Services,External Contractors Charges,4570,Steam Clean 13.5.21 VX18 KLC JFC16775,23/06/2021,0000468618,£65.00,Revenue,NAYLORS TRANSPORT (LEYLAND) ltd,0
South Ribble Borough Council,http://statistics.data.gov.uk/id/local-authority/30UE,Central Support Services,External Contractors Charges,4570,Steam Clean 17.5.21 VO65 KPZ JFC16776,23/06/2021,0000468618,£65.00,Revenue,NAYLORS TRANSPORT (LEYLAND) ltd,0
South Ribble Borough Council,http://statistics.data.gov.uk/id/local-authority/30UE,Central Support Services,External Contractors Charges,4570,Steam Clean 21.5.21 PJ62UCG JFC16777,23/06/2021,0000468618,£65.00,Revenue,NAYLORS TRANSPORT (LEYLAND) ltd,0
South Ribble Borough Council,http://statistics.data.gov.uk/id/local-authority/30UE,Central Support Services,External Contractors Charges,4570,Steam Clean 27.5.21 PO20 ZRV JFC16778,23/06/2021,0000468618,£65.00,Revenue,NAYLORS TRANSPORT (LEYLAND) ltd,0
South Ribble Borough Council,http://statistics.data.gov.uk/id/local-authority/30UE,Democratic Represent and  Mgnt,Miscellaneous Expenses,4851,To supply one Windrush flag - option 2 as requested by NAME REDACTED,25/06/2021,0000469221,£285.00,Revenue,Nigel S Guy (Windrush Generation UK),0
South Ribble Borough Council,http://statistics.data.gov.uk/id/local-authority/30UE,Recreation & Sport,Electricity,2303,14/2/21 to 30/4/21,09/06/2021,0000468659,"£2,473.38",Revenue,NPOWER Business,0
South Ribble Borough Council,http://statistics.data.gov.uk/id/local-authority/30UE,Parking Services,Parking Attendants,4514,Deployment of officers May 2021,25/06/2021,0000469096,"£1,527.09",Revenue,NSL LTD,0
South Ribble Borough Council,http://statistics.data.gov.uk/id/local-authority/30UE,Parking Services,Cash Collection Charges Car Parks,4855,Cash Collection and Ringo Charges May 2021,25/06/2021,0000469096,£486.93,Revenue,NSL LTD,0
South Ribble Borough Council,http://statistics.data.gov.uk/id/local-authority/30UE,Parking Services,Cash Collection Charges Car Parks,4855,Ringo Convenience Charge May 2021,25/06/2021,0000469096,£294.36,Revenue,NSL LTD,0
South Ribble Borough Council,http://statistics.data.gov.uk/id/local-authority/30UE,Open Spaces,Security Service,4526,Price per contracted itemised collection,25/06/2021,0000469096,£41.94,Revenue,NSL LTD,0
South Ribble Borough Council,http://statistics.data.gov.uk/id/local-authority/30UE,Community Development,Contributions to Other Bodies,4730,Holiday Hunger food packages for May half term holidays,18/06/2021,0000469062,"£11,100.00",Revenue,Oncore Trading,0
South Ribble Borough Council,http://statistics.data.gov.uk/id/local-authority/30UE,Central Support Services,Materials General,4040,"Shock absorbers, set of brake shoes, set of brake discs, brake disc fitting kit, set of brake pads, brake pad wearing kit, PF15HYU, JFC16825",18/06/2021,0000469054,£290.51,Revenue,Parts Alliance Group Ltd T/A BBC Superfactors,0
South Ribble Borough Council,http://statistics.data.gov.uk/id/local-authority/30UE,Recreation & Sport,Consumable Clng Materials,2711,3PLY General Purpose Type I FACE MASK (50),16/06/2021,0000467191,£180.00,Revenue,Pattersons (Bristol) Ltd,0
South Ribble Borough Council,http://statistics.data.gov.uk/id/local-authority/30UE,Recreation & Sport,Consumable Clng Materials,2711,Jangro Centrefeed 2PLY 20cm 150MTR BLUE (6),16/06/2021,0000467191,£155.40,Revenue,Pattersons (Bristol) Ltd,0
South Ribble Borough Council,http://statistics.data.gov.uk/id/local-authority/30UE,Capital,Capital Grant,C570,DFG WORK FOR BATHROOM ADAPTATION AT ADDRESS REDACTED AS PER SRBC PLANS AND SPEC AND QUOTE SUPPLIED,18/06/2021,0000469073,"£4,100.00",Revenue,Paul Rothwell and Sons,0
South Ribble Borough Council,http://statistics.data.gov.uk/id/local-authority/30UE,Surplus or Deficit on Trading,Reactive Repair & Maintenance,2020,"Works as per quote QU0231 as per NAME REDACTED instruction, Damp course works at worden cottage, Remove existing party wall, dispose",04/06/2021,0000468541,"£2,420.00",Revenue,PDP PROPERTY SERVICES LTD,0
South Ribble Borough Council,http://statistics.data.gov.uk/id/local-authority/30UE,Central Support Services,Reactive Repair & Maintenance,2020,Moss Side Depot - remedial works for fire safety/dble door set replacement as per NAME REDACTED 21 Oct 2020,09/06/2021,0000468548,"£11,947.00",Revenue,PDP PROPERTY SERVICES LTD,0
South Ribble Borough Council,http://statistics.data.gov.uk/id/local-authority/30UE,Recycling,Contract Printing,4127,Provision & posting of garden waste permits 2021/22 and hosting of permit management website. As per quote dated 28/08/2020,25/06/2021,0000469245,"£1,665.02",Revenue,Permiserv Ltd,0
South Ribble Borough Council,http://statistics.data.gov.uk/id/local-authority/30UE,Regulatory Services,Operational Equip & Tools,4010,1 Damp Meter per NAME REDACTED,11/06/2021,0000468808,£609.00,Revenue,PEVERALL BROS LTD T/A SURVEY EXPRESS SERVICES,0
South Ribble Borough Council,http://statistics.data.gov.uk/id/local-authority/30UE,Central Support Services,Software Licensing,4243,"OP/1889270  Microsoft Licences £14140.79, OP/1889271  Microsoft Licences £118356.70",18/06/2021,0000467739,"£11,783.99",Revenue,PHOENIX SOFTWARE LTD,0
South Ribble Borough Council,http://statistics.data.gov.uk/id/local-authority/30UE,Central Support Services,Software Licensing,4243,"OP/1889270  Microsoft Licences £14140.79, OP/1889271  Microsoft Licences £118356.70",18/06/2021,0000467741,"£98,630.58",Revenue,PHOENIX SOFTWARE LTD,0
South Ribble Borough Council,http://statistics.data.gov.uk/id/local-authority/30UE,Central Support Services,Legal,4821,PROFESSIONAL SERVICES WITH REGARD TO ADDRESS REDACTED,25/06/2021,0000469307,£945.00,Revenue,PIERS RILEY-SMITH,0
South Ribble Borough Council,http://statistics.data.gov.uk/id/local-authority/30UE,Central Support Services,Agency Staff,1121,Planning Enforcement consultancy services,16/06/2021,0000468874,"£1,178.00",Revenue,Planning Control & PACE Solutions,0
South Ribble Borough Council,http://statistics.data.gov.uk/id/local-authority/30UE,Emergency Planning,Subscriptions General,4721,LRF Secretary post  for the period 2021-2022. Total LA - £861.94,18/06/2021,0000468540,£861.94,Revenue,POLICE & CRIME COMMISSIONER LANCS POLICE,0
South Ribble Borough Council,http://statistics.data.gov.uk/id/local-authority/30UE,Central Support Services,Miscellaneous Expenses,4851,Re : Withy Grove Signs ref15249/2 as per NAME REDACTED request,09/06/2021,0000468595,£670.23,Revenue,Poppy Signs Ltd,0
South Ribble Borough Council,http://statistics.data.gov.uk/id/local-authority/30UE,Central Support Services,Paper Bulk,4133,"40,000 sheets  Evolution Everyday A4 80gm, 2000 sheets White A4 card 200gsm Premier Elements Fire",02/06/2021,0000468454,£272.20,Revenue,PREMIER PAPER GROUP LTD,0
South Ribble Borough Council,http://statistics.data.gov.uk/id/local-authority/30UE,Culture & Heritage,Operational Equip & Tools,4010,"Mostralog data logger with display 9904-1560W x 2 per £129.95, 9905-1560B x 1 per £129.95 Just-in-case pack 377-3744 x 1 per £150.",23/06/2021,0000465315,£554.80,Revenue,Preservation Equipment Ltd,0
South Ribble Borough Council,http://statistics.data.gov.uk/id/local-authority/30UE,Culture & Heritage,Operational Equip & Tools,4010,"Museum Vac Accessories - A. Mini-Adapter Kit, HEPA Filter Bags & Seal Label, Museum Vac Smoke Sponges - Dry Cleaning Sponge - Rub",09/06/2021,0000468458,£398.53,Revenue,Preservation Equipment Ltd,0
South Ribble Borough Council,http://statistics.data.gov.uk/id/local-authority/30UE,Central Support Services,Materials General,4040,TR229,11/06/2021,0000466381,£469.35,Revenue,PRESTON TYRE SPECIALISTS,0
South Ribble Borough Council,http://statistics.data.gov.uk/id/local-authority/30UE,Central Support Services,External Contractors Charges,4570,TR232,23/06/2021,0000469116,£549.30,Revenue,PRESTON TYRE SPECIALISTS,0
South Ribble Borough Council,http://statistics.data.gov.uk/id/local-authority/30UE,Central Support Services,External Contractors Charges,4570,TR233,23/06/2021,0000469116,£346.60,Revenue,PRESTON TYRE SPECIALISTS,0
South Ribble Borough Council,http://statistics.data.gov.uk/id/local-authority/30UE,Economic Development,Contribution from Reserve,4866,Signage for the Credit Union,09/06/2021,0000468459,£716.00,Revenue,Principle Signs and Graphics Ltd,0
South Ribble Borough Council,http://statistics.data.gov.uk/id/local-authority/30UE,Elections,Polling Centre Costs,4421,PCC CORRESPONDING NUMBER LISTS (FOR 64 STATIONS) - JOB REF: 8151,09/06/2021,0000468566,"£1,196.94",Revenue,PRINT IMAGE NETWORK LTD,0
South Ribble Borough Council,http://statistics.data.gov.uk/id/local-authority/30UE,Elections,Polling Centre Costs,4421,ST AMBROSE BY-ELECTION CORRESPONDING NUMBER LISTS (3) - JOB REF: 8169,09/06/2021,0000468568,"£1,255.70",Revenue,PRINT IMAGE NETWORK LTD,0
South Ribble Borough Council,http://statistics.data.gov.uk/id/local-authority/30UE,Elections,Polling Centre Costs,4421,LCC CORRESPONDING NUMBERS LISTS (FOR 64 STATIONS) - JOB REF: 8152,09/06/2021,0000468569,"£1,196.94",Revenue,PRINT IMAGE NETWORK LTD,0
South Ribble Borough Council,http://statistics.data.gov.uk/id/local-authority/30UE,Elections,Postal Voting Costs,4422,"LCC-PCC combined voter-peel connect postal voting ballot packs for 1st issue, 2nd issue, replacements and Covid-19 contingency stock.",09/06/2021,0000468570,"£10,372.70",Revenue,PRINT IMAGE NETWORK LTD,0
South Ribble Borough Council,http://statistics.data.gov.uk/id/local-authority/30UE,Elections,Postal Voting Costs,4422,"LCC-PCC combined voter-peel connect postal voting ballot packs for 1st issue, 2nd issue, replacements and Covid-19 contingency stock.",09/06/2021,0000468570,"£10,372.70",Revenue,PRINT IMAGE NETWORK LTD,0
South Ribble Borough Council,http://statistics.data.gov.uk/id/local-authority/30UE,Elections,Polling Centre Costs,4421,"LCC POLLING STATION BALLOT BOOKS - 70,000 ORDINARY BALLOT PAPERS (700) / 640 TENDERED BALLOT PAPERS (64)",11/06/2021,0000468838,"£10,335.30",Revenue,PRINT IMAGE NETWORK LTD,0
South Ribble Borough Council,http://statistics.data.gov.uk/id/local-authority/30UE,Elections,Polling Centre Costs,4421,3000 ORDINARY BALLOT PAPERS (100 BOOKS) / 30 TENDERED BALLOT PAPERS (3 BOOKS) JOB REF 7980,25/06/2021,0000469305,"£1,479.60",Revenue,PRINT IMAGE NETWORK LTD,0
South Ribble Borough Council,http://statistics.data.gov.uk/id/local-authority/30UE,Elections,Postal Voting Costs,4422,1000 X ST AMBROSE BY-ELECTION POSTAL VOTE PACKS - JOB REF 7981,25/06/2021,0000469306,"£3,016.08",Revenue,PRINT IMAGE NETWORK LTD,0
South Ribble Borough Council,http://statistics.data.gov.uk/id/local-authority/30UE,Open Spaces,GM Refurbishment,4657,Toddler climber panel and balancing beam/pods as per quotation Ref April 21 QJ2646M-J12.,25/06/2021,0000468431,£846.34,Revenue,PROLUDIC LTD,0
South Ribble Borough Council,http://statistics.data.gov.uk/id/local-authority/30UE,Economic Development,Economic Regeneration,485A,1 Year hosting 2021/22 for businessinsouthribble.com,23/06/2021,0000468546,£600.00,Revenue,PROTEAN SYSTEMS LIMITED,0
South Ribble Borough Council,http://statistics.data.gov.uk/id/local-authority/30UE,Recreation & Sport,Reactive Repair & Maintenance,2020,"REMEDIAL WORKS TO DANCE STUDIO BAMBER BRIDGE LEISURE, 19TH MAY 2021, RE: MIRRORS, Install and Make Safe all existing",04/06/2021,0000468432,£320.00,Revenue,PSR & Sons Joiners & Building Contractors,0
South Ribble Borough Council,http://statistics.data.gov.uk/id/local-authority/30UE,Recreation & Sport,Reactive Repair & Maintenance,2020,LABOUR,04/06/2021,0000468432,£60.00,Revenue,PSR & Sons Joiners & Building Contractors,0
South Ribble Borough Council,http://statistics.data.gov.uk/id/local-authority/30UE,Central Support Services,Franked Post,4292,"Franking Funds meter reset, Consumable Blue Ink and RM underpayment charge 15/3 to 21/4",09/06/2021,0000467510,"£9,097.92",Revenue,Purchase Power,0
South Ribble Borough Council,http://statistics.data.gov.uk/id/local-authority/30UE,Central Support Services,Franked Post,4292,vat items,09/06/2021,0000467510,£242.95,Revenue,Purchase Power,0
South Ribble Borough Council,http://statistics.data.gov.uk/id/local-authority/30UE,Surplus or Deficit on Trading,Reactive Repair & Maintenance,2020,Removal of pipework and clearance of effluent tank at Penwortham Holme. Fitting and making safe large hole left from the tank removal (temp).,09/06/2021,0000468544,£620.00,Revenue,RED ROSE BUILDING MAINTENANCE,0
South Ribble Borough Council,http://statistics.data.gov.uk/id/local-authority/30UE,Surplus or Deficit on Trading,Reactive Repair & Maintenance,2020,LABOUR,09/06/2021,0000468544,£150.00,Revenue,RED ROSE BUILDING MAINTENANCE,0
South Ribble Borough Council,http://statistics.data.gov.uk/id/local-authority/30UE,Central Support Services,Materials General,4040,Marker Light Red/White 5013400 BIN G018,04/06/2021,0000468355,£72.99,Revenue,Refuse Vehicle Parts,0
South Ribble Borough Council,http://statistics.data.gov.uk/id/local-authority/30UE,Central Support Services,Materials General,4040,Barrier Arm 5004214 G015,04/06/2021,0000468355,£224.57,Revenue,Refuse Vehicle Parts,0
South Ribble Borough Council,http://statistics.data.gov.uk/id/local-authority/30UE,Central Support Services,Materials General,4040,2 x LED Side Marker Lamp - BING018,04/06/2021,0000468355,£72.99,Revenue,Refuse Vehicle Parts,0
South Ribble Borough Council,http://statistics.data.gov.uk/id/local-authority/30UE,Central Support Services,Materials General,4040,6 Banjo Fittings - BING049,04/06/2021,0000468355,£156.00,Revenue,Refuse Vehicle Parts,0
South Ribble Borough Council,http://statistics.data.gov.uk/id/local-authority/30UE,Central Support Services,Materials General,4040,"1 x bin clamp spring, JFC16673, VO65KPZ",04/06/2021,0000468355,£315.00,Revenue,Refuse Vehicle Parts,0
South Ribble Borough Council,http://statistics.data.gov.uk/id/local-authority/30UE,Economic Development,Advertising,4841,"Advert in the Leyland Life magazine as per NAME REDACTED`s request, Full page £280.00 for May’s edition",09/06/2021,0000468594,£320.00,Revenue,Ribble Publications Ltd,0
South Ribble Borough Council,http://statistics.data.gov.uk/id/local-authority/30UE,Non Domestic Rates Redistribut,Levy to Business Rates Pool,4994,contribution,25/06/2021,0000469153,"£4,301.90",Revenue,Ribble Valley Borough Council,0
South Ribble Borough Council,http://statistics.data.gov.uk/id/local-authority/30UE,Central Support Services,Photocopier Lease Rental,4036,1/5/21 to 31/7/21,18/06/2021,0000467797,"£5,851.63",Revenue,RICOH (UK) LTD,0
South Ribble Borough Council,http://statistics.data.gov.uk/id/local-authority/30UE,Central Support Services,IT Consumables,413A,1/2/21 to 30/4/21,18/06/2021,0000467797,"£3,319.83",Revenue,RICOH (UK) LTD,0
South Ribble Borough Council,http://statistics.data.gov.uk/id/local-authority/30UE,Open Spaces,Materials General,4040,2 x 150g tubs of Chikara,09/06/2021,0000468469,£340.00,Revenue,RIGBY TAYLOR LTD,0
South Ribble Borough Council,http://statistics.data.gov.uk/id/local-authority/30UE,Open Spaces,Materials General,4040,Delivery charges,09/06/2021,0000468469,£10.75,Revenue,RIGBY TAYLOR LTD,0
South Ribble Borough Council,http://statistics.data.gov.uk/id/local-authority/30UE,Open Spaces,Materials General,4040,15 x 20kg bags of Outfield 16-6-6 Fertiliser @£16.95 per bag.,25/06/2021,0000468701,£254.25,Revenue,RIGBY TAYLOR LTD,0
South Ribble Borough Council,http://statistics.data.gov.uk/id/local-authority/30UE,Open Spaces,Materials General,4040,Carriage,25/06/2021,0000468701,£10.75,Revenue,RIGBY TAYLOR LTD,0
South Ribble Borough Council,http://statistics.data.gov.uk/id/local-authority/30UE,Surplus or Deficit on Trading,Professional Fees,4510,Valuation of the Head Leasehold interest in the Forward Industrial Estate. For the Attention of NAME REDACTED.,23/06/2021,0000469042,£900.00,Revenue,ROBERT PINKUS (MANAGEMENT SERVICES) LTD,0
South Ribble Borough Council,http://statistics.data.gov.uk/id/local-authority/30UE,Central Support Services,Business Reply Services,4295,licence fee,02/06/2021,0000468419,£341.67,Revenue,ROYAL MAIL GROUP PLC,0
South Ribble Borough Council,http://statistics.data.gov.uk/id/local-authority/30UE,Elections,Postal Voting Costs,4422,BI-ELECTION - BUSINESS MAIL ADVANCED 1 C SORTED,18/06/2021,0000469118,£41.40,Revenue,ROYAL MAIL GROUP PLC,0
South Ribble Borough Council,http://statistics.data.gov.uk/id/local-authority/30UE,Elections,Postal Voting Costs,4422,PCC ELECTION - BUSINESS MAIL ADVANCED 1C SORTED,18/06/2021,0000469118,£175.60,Revenue,ROYAL MAIL GROUP PLC,0
South Ribble Borough Council,http://statistics.data.gov.uk/id/local-authority/30UE,Elections,Postal Voting Costs,4422,LCC ELECTION - BUSINESS MAIL ADVANCED 1C SORTED,18/06/2021,0000469118,£175.61,Revenue,ROYAL MAIL GROUP PLC,0
South Ribble Borough Council,http://statistics.data.gov.uk/id/local-authority/30UE,Elections,Postal Voting Costs,4422,PCC ELECTION - RESPONSE PLUS SERVICE,23/06/2021,0000469119,£734.08,Revenue,ROYAL MAIL GROUP PLC,0
South Ribble Borough Council,http://statistics.data.gov.uk/id/local-authority/30UE,Elections,Postal Voting Costs,4422,LCC ELECTION - RESPONSE PLUS SERVICE,23/06/2021,0000469119,£734.08,Revenue,ROYAL MAIL GROUP PLC,0
South Ribble Borough Council,http://statistics.data.gov.uk/id/local-authority/30UE,Capital,Cap Contract Payment,C230,McKenzie Arms - RIBA Stage 4A Technical Design in accordance with fee proposal dated 11.11.2020,18/06/2021,0000469053,"£2,191.30",Revenue,Sanderson Weatherall LLP,0
South Ribble Borough Council,http://statistics.data.gov.uk/id/local-authority/30UE,Elections,Polling Count Costs,4424,2 x SECURITY STAFF TO GUARD THE BALLOT BOXES IN BETWEEN VERIFICATION AND 2 X COUNTS,23/06/2021,0000469074,£830.08,Revenue,SECTOR SECURITY SERVICES LTD,0
South Ribble Borough Council,http://statistics.data.gov.uk/id/local-authority/30UE,Elections,Polling Count Costs,4424,2 x SECURITY STAFF TO GUARD THE BALLOT BOXES IN BETWEEN VERIFICATION AND 2 X COUNTS,23/06/2021,0000469074,£830.08,Revenue,SECTOR SECURITY SERVICES LTD,0
South Ribble Borough Council,http://statistics.data.gov.uk/id/local-authority/30UE,Recreation & Sport,Professional Fees,4510,"May 2021 Direct Debit collection charge 10% of total collection value of £87,472",16/06/2021,0000468909,"£8,747.20",Revenue,SERCO LEISURE (OP) LTD,0
South Ribble Borough Council,http://statistics.data.gov.uk/id/local-authority/30UE,Elections,Polling Count Costs,4424,POLLING STATION SUNDRIES (AS PER ATTACHED ORDER FORMS),09/06/2021,0000467402,£275.44,Revenue,SHAW & SONS LTD,0
South Ribble Borough Council,http://statistics.data.gov.uk/id/local-authority/30UE,Central Support Services,Other Fees,4520,Shredding of Confidential Waste 2021/22,09/06/2021,0000468661,£490.62,Revenue,SHRED-IT LTD,0
South Ribble Borough Council,http://statistics.data.gov.uk/id/local-authority/30UE,Development Control,Operational Equip & Tools,4010,"Lease Rental 14 May 2021 - 13 Aug 2021 HP XL-3600 Wide Format Printer, 95L1H039",09/06/2021,0000468456,"£1,015.29",Revenue,Siemens Financial Services Limited,0
South Ribble Borough Council,http://statistics.data.gov.uk/id/local-authority/30UE,Open Spaces,GM Refurbishment,4657,"to carry out a topographical survey of the fenced playground at Birch Avenue, Penwortham PR1 0PA.",25/06/2021,0000468901,£400.00,Revenue,SITE SURVEYING SERVICES LIMITED,0
South Ribble Borough Council,http://statistics.data.gov.uk/id/local-authority/30UE,Short Term Creditors,Amount Paid,0030,monthly deductions from payroll,09/06/2021,0000468450,"£1,444.14",Revenue,SOUTH RIBBLE LABOUR PARTY LOCAL GOVERNM,0
South Ribble Borough Council,http://statistics.data.gov.uk/id/local-authority/30UE,Central Support Services,Materials General,4040,1 x deck bracket - BIN1036,23/06/2021,0000469104,£122.90,Revenue,SPALDINGS,0
South Ribble Borough Council,http://statistics.data.gov.uk/id/local-authority/30UE,Central Support Services,Materials General,4040,6 x centre pivot bar - BIN1251,23/06/2021,0000469104,£147.00,Revenue,SPALDINGS,0
South Ribble Borough Council,http://statistics.data.gov.uk/id/local-authority/30UE,Elections,Polling Centre Costs,4421,Use of the venue for the Lancashire County Council and Police and Crime Commissioner Elections on 6 May 2021,02/06/2021,0000468435,£212.50,Revenue,ST AMBROSE CHURCH HALL,0
South Ribble Borough Council,http://statistics.data.gov.uk/id/local-authority/30UE,Elections,Polling Centre Costs,4421,.,02/06/2021,0000468435,£212.50,Revenue,ST AMBROSE CHURCH HALL,0
South Ribble Borough Council,http://statistics.data.gov.uk/id/local-authority/30UE,Short Term Creditors,Amount Paid,0030,monthly deductions from payroll,09/06/2021,0000468449,£416.64,Revenue,ST CATHERINES HOSPICE PROMOTIONS LTD,0
South Ribble Borough Council,http://statistics.data.gov.uk/id/local-authority/30UE,Recreation & Sport,Reactive Repair & Maintenance,2020,Delivery of Group Exercise classes at Leyland & Bamber bridge LC May 2021,18/06/2021,0000469043,£280.00,Revenue,Stamatiki Stratakou,0
South Ribble Borough Council,http://statistics.data.gov.uk/id/local-authority/30UE,Service Management & Support,Gas Oil,3134,2500 litres gas oil at 54.90ppl into tank 2,04/06/2021,0000468343,"£1,384.19",Revenue,Standard Fuel Oils LtdMain,0
South Ribble Borough Council,http://statistics.data.gov.uk/id/local-authority/30UE,Service Management & Support,Diesel Fuel,3132,16000 litres diesel @ 100.41ppl into the feeder tank at Unit 81 Bison Place Moss Side,04/06/2021,0000468353,"£16,013.20",Revenue,Standard Fuel Oils LtdMain,0
South Ribble Borough Council,http://statistics.data.gov.uk/id/local-authority/30UE,Service Management & Support,Diesel Fuel,3132,16500 litres diesel @ 100.07ppl into the feeder tank at Unit 81 Bison Place Moss Side,11/06/2021,0000468696,"£16,665.50",Revenue,Standard Fuel Oils LtdMain,0
South Ribble Borough Council,http://statistics.data.gov.uk/id/local-authority/30UE,Service Management & Support,Gas Oil,3134,3000 litres gas oil  at 56.23ppl into tank 2,23/06/2021,0000469083,"£1,700.40",Revenue,Standard Fuel Oils LtdMain,0
South Ribble Borough Council,http://statistics.data.gov.uk/id/local-authority/30UE,Service Management & Support,Diesel Fuel,3132,17000 litres diesel @ 101.74ppl into the feeder tank at Unit 81 Bison Place Moss Side,23/06/2021,0000469084,"£17,618.58",Revenue,Standard Fuel Oils LtdMain,0
South Ribble Borough Council,http://statistics.data.gov.uk/id/local-authority/30UE,Capital,Capital Grant,C570,DFG WORK TO SUPPLY AND INSTALL A STAIRLIFT AT ADDRESS REDACTED AS PER QUOTE SUPPLIED OF £3144.00,23/06/2021,0000469275,"£3,144.00",Revenue,Stannah Lift Services Ltd,0
South Ribble Borough Council,http://statistics.data.gov.uk/id/local-authority/30UE,Capital,Cap Contract Payment,C230,Heritage Assessment - as instructed by NAME REDACTED,11/06/2021,0000468686,£650.00,Revenue,Steven Price,0
South Ribble Borough Council,http://statistics.data.gov.uk/id/local-authority/30UE,Recreation & Sport,Reactive Repair & Maintenance,2020,"Rental fees for the anti vandal toilet, quarter 1 2021, for the unit & tank located at Penwortham Holme ref 523-302704",04/06/2021,0000468331,£274.40,Revenue,Sunbelt Rentals UK Ltd,0
South Ribble Borough Council,http://statistics.data.gov.uk/id/local-authority/30UE,Open Spaces,GM Refurbishment,4657,To carry out a Topographical survey of the childrens playground (including the surrounding area) at Moss Side Playground off Dunkirk Lane. Leyland.,25/06/2021,0000468602,£550.00,Revenue,SURVEY OPERATIONS LTD,0
South Ribble Borough Council,http://statistics.data.gov.uk/id/local-authority/30UE,Central Support Services,External Contractors Charges,4570,"1 x spec repair, VX18KLC, JFC16736",11/06/2021,0000468352,£901.90,Revenue,TERBERG MATEC UK LTD,0
South Ribble Borough Council,http://statistics.data.gov.uk/id/local-authority/30UE,Economic Development,Reactive Repair & Maintenance,2020,Investigate faults in battery pack and operator on the left hand market door and fit retro pack as per QUO06309,09/06/2021,0000468656,"£2,351.00",Revenue,THE AUTOMATIC DOOR COMPANY LTD,0
South Ribble Borough Council,http://statistics.data.gov.uk/id/local-authority/30UE,Economic Development,Reactive Repair & Maintenance,2020,"Floor guides on the Leyland Market automatic door, heavily worn, require replacing, safety sensors have failed their box test both need replacing",18/06/2021,0000469061,"£1,160.00",Revenue,THE AUTOMATIC DOOR COMPANY LTD,0
South Ribble Borough Council,http://statistics.data.gov.uk/id/local-authority/30UE,Central Support Services,Individual Subs Prof. Bodies,1741,MEMBERSHIP SUBSCRIPTION RENEWAL FOR NAME REDACTED FOR 2021,04/06/2021,0000468533,£364.00,Revenue,THE CHARTERED INSTITUTE OF LEGAL EXECUTIVES,0
South Ribble Borough Council,http://statistics.data.gov.uk/id/local-authority/30UE,Central Support Services,Individual Subs Prof. Bodies,1741,MEMBERSHIP SUBSCRIPTION RENEWAL FOR NAME REDACTED FOR 2021,04/06/2021,0000468542,£364.00,Revenue,THE CHARTERED INSTITUTE OF LEGAL EXECUTIVES,0
South Ribble Borough Council,http://statistics.data.gov.uk/id/local-authority/30UE,Central Support Services,Operational Equip & Tools,4010,Ranger Litter Picker LP3035-35``,16/06/2021,0000468889,£523.20,Revenue,The Helping Hand Company,0
South Ribble Borough Council,http://statistics.data.gov.uk/id/local-authority/30UE,Central Support Services,Agency Staff,1121,"For Agency Staff, NAME REDACTED (Project Surveyor) to work a total of 89 days within the £25,000 budget. April 26th - August 31st 2021",04/06/2021,0000468465,"£1,400.00",Revenue,The Oyster Partnership,0
South Ribble Borough Council,http://statistics.data.gov.uk/id/local-authority/30UE,Central Support Services,Agency Staff,1121,"For Agency Staff, NAME REDACTED (Project Surveyor) to work a total of 89 days within the £25,000 budget. April 26th - August 31st 2021",04/06/2021,0000468466,"£1,400.00",Revenue,The Oyster Partnership,0
South Ribble Borough Council,http://statistics.data.gov.uk/id/local-authority/30UE,Central Support Services,Agency Staff,1121,"For Agency Staff, NAME REDACTED (Project Surveyor) to work a total of 89 days within the £25,000 budget. April 26th - August 31st 2021",09/06/2021,0000468628,"£1,400.00",Revenue,The Oyster Partnership,0
South Ribble Borough Council,http://statistics.data.gov.uk/id/local-authority/30UE,Central Support Services,Agency Staff,1121,"For Agency Staff, NAME REDACTED (Project Surveyor) to work a total of 89 days within the £25,000 budget. April 26th - August 31st 2021",23/06/2021,0000469130,"£1,120.00",Revenue,The Oyster Partnership,0
South Ribble Borough Council,http://statistics.data.gov.uk/id/local-authority/30UE,Central Support Services,Reference Books,4142,Schofield R58,16/06/2021,0000468755,£144.00,Revenue,THOMSON REUTERS,0
South Ribble Borough Council,http://statistics.data.gov.uk/id/local-authority/30UE,Central Support Services,Reference Books,4142,Schofield R58,16/06/2021,0000468755,£144.00,Revenue,THOMSON REUTERS,0
South Ribble Borough Council,http://statistics.data.gov.uk/id/local-authority/30UE,Recreation & Sport,Gas,2304,Gas 01/04/21 - 27/04/21,02/06/2021,0000468348,"£4,927.60",Revenue,Total Gas & power Ltd,0
South Ribble Borough Council,http://statistics.data.gov.uk/id/local-authority/30UE,Recreation & Sport,Gas,2304,1/4 to 15/4/21,09/06/2021,0000468530,"£1,321.39",Revenue,Total Gas & power Ltd,0
South Ribble Borough Council,http://statistics.data.gov.uk/id/local-authority/30UE,Recreation & Sport,Gas,2304,CCL,09/06/2021,0000468530,£179.94,Revenue,Total Gas & power Ltd,0
South Ribble Borough Council,http://statistics.data.gov.uk/id/local-authority/30UE,Central Support Services,Gas,2304,27/4/ to 24/5/21,09/06/2021,0000468577,£721.60,Revenue,Total Gas & power Ltd,0
South Ribble Borough Council,http://statistics.data.gov.uk/id/local-authority/30UE,Central Support Services,Climate Change Levy,2307,CCL,09/06/2021,0000468577,£90.56,Revenue,Total Gas & power Ltd,0
South Ribble Borough Council,http://statistics.data.gov.uk/id/local-authority/30UE,Central Support Services,Electricity,2303,1/5 to 31/5/21,09/06/2021,0000468689,"£2,769.05",Revenue,Total Gas & power Ltd,0
South Ribble Borough Council,http://statistics.data.gov.uk/id/local-authority/30UE,Central Support Services,Climate Change Levy,2307,ccl,09/06/2021,0000468689,£142.26,Revenue,Total Gas & power Ltd,0
South Ribble Borough Council,http://statistics.data.gov.uk/id/local-authority/30UE,Economic Development,Electricity,2303,1/5 to 31/5/21,09/06/2021,0000468691,"£1,247.01",Revenue,Total Gas & power Ltd,0
South Ribble Borough Council,http://statistics.data.gov.uk/id/local-authority/30UE,Economic Development,Climate Change Levy,2307,ccl,09/06/2021,0000468691,£56.47,Revenue,Total Gas & power Ltd,0
South Ribble Borough Council,http://statistics.data.gov.uk/id/local-authority/30UE,Open Spaces,Electricity,2303,1/5 to 31/5/21,09/06/2021,0000468692,£416.00,Revenue,Total Gas & power Ltd,0
South Ribble Borough Council,http://statistics.data.gov.uk/id/local-authority/30UE,Open Spaces,Climate Change Levy,2307,ccl,09/06/2021,0000468692,£16.37,Revenue,Total Gas & power Ltd,0
South Ribble Borough Council,http://statistics.data.gov.uk/id/local-authority/30UE,Central Support Services,Electricity,2303,1/5 to 31/5/21,09/06/2021,0000468693,"£2,443.86",Revenue,Total Gas & power Ltd,0
South Ribble Borough Council,http://statistics.data.gov.uk/id/local-authority/30UE,Central Support Services,Climate Change Levy,2307,ccl,09/06/2021,0000468693,£130.30,Revenue,Total Gas & power Ltd,0
South Ribble Borough Council,http://statistics.data.gov.uk/id/local-authority/30UE,Open Spaces,Electricity,2303,1/5 to 31/5/21,09/06/2021,0000468735,£309.93,Revenue,Total Gas & power Ltd,0
South Ribble Borough Council,http://statistics.data.gov.uk/id/local-authority/30UE,Open Spaces,Climate Change Levy,2307,ccl,09/06/2021,0000468735,£14.47,Revenue,Total Gas & power Ltd,0
South Ribble Borough Council,http://statistics.data.gov.uk/id/local-authority/30UE,Recreation & Sport,Gas,2304,1/4/21 to 7/4/21,23/06/2021,0000469101,£926.99,Revenue,Total Gas & power Ltd,0
South Ribble Borough Council,http://statistics.data.gov.uk/id/local-authority/30UE,Housing Mgnt & Support Service,Professional Fees,4510,"Brownfield Land Release Application - West Paddock Extra Care Facility, Creating an initial concept with costs 2days at blended £750/day",16/06/2021,0000468740,"£6,000.00",Revenue,Trebbi Continuum Limited,0
South Ribble Borough Council,http://statistics.data.gov.uk/id/local-authority/30UE,Capital,Cap Contract Payment,C230,"Inspect trees, produce a pre-development arboricultural report & plans for the proposed development at Worden Hall",18/06/2021,0000469035,£991.80,Revenue,Treescapes Consultancy Ltd,0
South Ribble Borough Council,http://statistics.data.gov.uk/id/local-authority/30UE,Community Safety Services,Maintenance & Repair,4013,Renewal of 2 x 30 Gig Data SIMs (on 3) 01.03.21-28.02.23 Hough Lane CCTV,16/06/2021,0000468872,"£1,152.00",Revenue,Vemotion Interactive Ltd,0
South Ribble Borough Council,http://statistics.data.gov.uk/id/local-authority/30UE,Community Safety Services,Maintenance & Repair,4013,Renew of 1 x 30 Gig Data SIM (on 3) 01.03.21-28.02.23 Withy Grove Park CCTV,16/06/2021,0000468872,£576.00,Revenue,Vemotion Interactive Ltd,0
South Ribble Borough Council,http://statistics.data.gov.uk/id/local-authority/30UE,Community Safety Services,Maintenance & Repair,4013,Renewal of 1 x 30 Gig Data SIM (on 3) 01.03.21-28.02.23 Moss Side Community Centre CCTV,16/06/2021,0000468872,£576.00,Revenue,Vemotion Interactive Ltd,0
South Ribble Borough Council,http://statistics.data.gov.uk/id/local-authority/30UE,Community Safety Services,Maintenance & Repair,4013,Renewal of 1 x 30 Gig Data SIM (on EE) 01.03.21-28.02.23 Royal Avenue CCTV,16/06/2021,0000468872,£576.00,Revenue,Vemotion Interactive Ltd,0
South Ribble Borough Council,http://statistics.data.gov.uk/id/local-authority/30UE,Community Safety Services,Maintenance & Repair,4013,Renewal of 2 x 30 Gig Data SIM`s (on EE) 01.03.21-28.02.23 Worden Park CCTV,16/06/2021,0000468872,"£1,152.00",Revenue,Vemotion Interactive Ltd,0
South Ribble Borough Council,http://statistics.data.gov.uk/id/local-authority/30UE,Democratic Represent and  Mgnt,Rental,4012,2021 / 2022 annual contract for the monthly rental of hot drinks machines at the civic centre including environmental charge.,04/06/2021,0000468463,£291.98,Revenue,VENDING ENTERPRISES,0
South Ribble Borough Council,http://statistics.data.gov.uk/id/local-authority/30UE,Central Support Services,Legal,4821,DEFAMATION ADVICE IN RELATION TO NAME REDACTED - SOLICITOR IN THIS CASE IS NAME REDACTED,16/06/2021,0000468886,"£1,187.00",Revenue,WEIGHTMANS LLP,0
South Ribble Borough Council,http://statistics.data.gov.uk/id/local-authority/30UE,Open Spaces,GM Refurbishment,4657,9 x 700 x 1600mm panels for Hurst Grange Coach House as per quote ref: 8558/1,25/06/2021,0000469215,£788.94,Revenue,West One Signs Ltd,0
South Ribble Borough Council,http://statistics.data.gov.uk/id/local-authority/30UE,Recreation & Sport,Professional Fees,4510,May 2021 Tennis Coaching,11/06/2021,0000468846,£605.00,Revenue,What A Racquet Ltd,0
South Ribble Borough Council,http://statistics.data.gov.uk/id/local-authority/30UE,Capital,Cap Contract Payment,C230,"For a Architectural & Principal Designer Services (Stages 4-7) Worden Hall as per tender as per NAME REDACTED Request Cost - £50,310",23/06/2021,0000468898,"£8,350.00",Revenue,Wilson Mason LLP,0
South Ribble Borough Council,http://statistics.data.gov.uk/id/local-authority/30UE,Capital,Cap Contract Payment,C230,"For 'WASH / The artistry house Interior Design work' - £17,800 as per NAME REDACTED request",23/06/2021,0000468899,"£6,700.00",Revenue,Wilson Mason LLP,0
South Ribble Borough Council,http://statistics.data.gov.uk/id/local-authority/30UE,Capital,Cap Contract Payment,C230," For ‘works to bring up to stage 3 spec from planning submission pack’ - £23,140 - as per NAME REDACTED request",23/06/2021,0000468900,"£14,066.20",Revenue,Wilson Mason LLP,0
South Ribble Borough Council,http://statistics.data.gov.uk/id/local-authority/30UE,Central Support Services,Computer Software,4242,SO0014259 - REWARD LICENCE - ANNUAL CHARGES - CHARGE PERIOD 29/09/2019 - 28/08/2020,02/06/2021,0000468414,"£3,630.00",Revenue,ZELLIS UK LTD,0
